Cogmind - Beta 11 @@@ ROGUE MODE // 2022.03.30 @ 19:40:37 Player: blelm Result: Escaped singularity! Performance ------------- Evolutions (9) 4500 Regions Visited (35) 7000 Robots Destroyed (379) 1895 Value Destroyed (21277) 21277 Prototype IDs (299) 5980 Alien Tech Used (16) 3200 Bonus (47394) 47394 TOTAL SCORE: 91246 Bonus ------- High Alert Combat Kills 651 Follower Combat Kills 1357 Entered Garrisons 600 Used RIF Installer 1500 Network Hubs Disabled 400 Aligned with FarCom 300 Met Zhirov 300 Built Enhanced Grunts 300 A7 Reached Mainframe 300 Met R17 at Cetus 500 Met R17 at Research 2000 Destroyed MAIN.C Guards 500 Met MAIN.C 5000 Hacked MAIN.C 300 Destroyed MAIN.C Shell 5000 Destroyed MAIN.C 10000 Met Architect 300 Destroyed A8 300 Destroyed A6 400 Destroyed Architect 15000 Win 3000 Friendly Fire -614 Cogmind --------- Core Integrity 584/1850 Matter 290/300 Energy 99/100 System Corruption 0% Temperature Cool (0) Movement Core (50) Location Near Former Tau Ceti IV Parts ------- > --- POWER (3) -------- (None) > --- PROPULSION (8) --- (None) > --- UTILITY (10) ----- (None) > --- WEAPON (4) ------- (None) > --- INVENTORY (5) ---- Singularity Reactor Centrium Leg Advanced Particle Charger Peak State ------------ > --- POWER ------------ Singularity Reactor > --- PROPULSION ------- Experimental Biometal Heavy Treads Experimental Biometal Heavy Treads Enhanced Armored Heavy Treads High-density Centrium Heavy Treads > --- UTILITY ---------- Experimental Cooling System Huge Storage Unit Spectral Analyzer Experimental Terrain Scan Processor Advanced Salvage Targeting Computer Experimental Targeting Computer Improved Armor Integrity Analyzer Centrium Medium Armor Plating Centrium Medium Armor Plating Spacefold Activator > --- WEAPON ----------- Gamma Rifle Enhanced Gamma Rifle Helical Railgun Helical Railgun > --- INVENTORY -------- Improved Quantum Reactor Singularity Reactor Improved Heavy Treads Armored Heavy Treads Armored Heavy Treads Armored Heavy Treads Biometal Heavy Treads Biometal Heavy Treads Experimental Core Analyzer Experimental Core Analyzer Improved Armor Integrity Analyzer Experimental Force Field Enhanced Nova Cannon Enhanced Nova Cannon Enhanced Nova Cannon Enhanced Nova Cannon Multirail [Rating: 248] Favorites ----------- Power Quantum Reactor Engine Reinforced Deuterium Engine Reactor Quantum Reactor Propulsion Armored Heavy Treads Treads Armored Heavy Treads Leg High-density Centrium Leg Wheel Armored Wheel Utility Centrium Medium Armor Plating Device Advanced Cooling System Storage Huge Storage Unit Processor Advanced Targeting Computer Hackware System Shield Protection Centrium Medium Armor Plating Artifact Phase Armor Weapon Enhanced Nova Cannon Energy Gun Advanced Variable Charge Gun Energy Cannon Enhanced Nova Cannon Ballistic Gun Advanced KE Penetrator Ballistic Cannon Hypercooled Linear Accelerator Launcher Rocket Launcher Special Weapon Advanced Remote Datajack Impact Weapon Core Stripper Slashing Weapon Great Axe Special Melee Weapon Datajack Build | -11 -10 -10 -9 -9 -9 -8 -8 -8 -8 -8 -7 -7 -6 -6 -6 -6 -6 -5 -5 -5 -5 -4 -4 -4 -4 -4 -3 -3 -3 -2 -2 -2 -1 -1 -1 ------- Run | Scr Mat Min Mat Min Exi Min Mat Gar Mat Gar Fac Gar Fac Ext Cet Arc Hub Fac Upp Upp War Pro Fac Upp Upp Zhi Pro Res Tes Res Qua Sec Acc Com Ac0 Slots Evolved 18 | . . . 2 . . . 2 . . . 2 . 2 . . . . 2 . . . . 2 . . . . 2 . 2 . . 2 . . Power 2 | . . . . . . . . . . . . . . . . . . 1 . . . . . . . . . . . . . . 1 . . Propulsion 6 | . . . 1 . . . . . . . 1 . . . . . . . . . . . 2 . . . . . . 2 . . . . . Utility 8 | . . . 1 . . . 1 . . . 1 . 2 . . . . 1 . . . . . . . . . 2 . . . . . . . Weapon 2 | . . . . . . . 1 . . . . . . . . . . . . . . . . . . . . . . . . . 1 . . Parts Attached 763 | 3 5 1 54 3 . 1 23 14 16 9 16 6 10 31 9 15 18 50 9 6 . 5 23 24 5 8 8 26 18 10 82 71 39 93 52 Power 37 | . . . 5 . . . 2 . 1 . 1 . 1 . 1 . 1 1 . . . . . . 3 1 . 2 2 . 12 1 1 2 . Engine 12 | . . . 5 . . . 2 . 1 . 1 . 1 . . . . . . . . . . . 2 . . . . . . . . . . Core . | . . . . . . . . . . . . . . . . . . . . . . . . . . . . . . . . . . . . Reactor 25 | . . . . . . . . . . . . . . . 1 . 1 1 . . . . . . 1 1 . 2 2 . 12 1 1 2 . Propulsion 79 | 2 . . 15 1 . . 5 . . 2 3 . . 4 2 . 3 7 . . . . 2 . . . . 4 . 2 4 3 2 12 6 Treads 49 | 1 . . 11 . . . 5 . . . 2 . . 2 2 . 2 4 . . . . 2 . . . . 4 . 2 4 3 2 2 1 Leg 15 | . . . . . . . . . . . . . . . . . . . . . . . . . . . . . . . . . . 10 5 Wheel 15 | 1 . . 4 1 . . . . . 2 1 . . 2 . . 1 3 . . . . . . . . . . . . . . . . . Hover . | . . . . . . . . . . . . . . . . . . . . . . . . . . . . . . . . . . . . Flight . | . . . . . . . . . . . . . . . . . . . . . . . . . . . . . . . . . . . . Utility 412 | . 2 . 17 1 . . 5 7 2 4 5 . 4 12 2 9 3 31 4 3 . . 17 14 2 4 6 13 15 7 55 59 33 38 38 Device 315 | . 1 . 9 . . . 3 4 2 1 2 . 2 8 . 7 2 26 4 3 . . 15 12 2 2 6 9 14 5 40 49 29 20 38 Storage 14 | . 1 . 4 . . . . 1 . . . . . . . . . . . . . . 1 . . 1 . 1 1 . 2 . . 2 . Processor 16 | . . . . . . . . . . . 1 . . . . . . 1 . . . . . . . . . 2 . 1 2 1 . 8 . Hackware 10 | . . . . . . . . 2 . 1 . . 1 1 . . . 1 . . . . . . . . . . . . 1 . 1 2 . Protection 44 | . . . 4 1 . . 2 . . 2 2 . 1 3 2 2 1 3 . . . . 1 2 . 1 . 1 . 1 8 2 . 5 . Artifact 13 | . . . . . . . . . . . . . . . . . . . . . . . . . . . . . . . 2 7 3 1 . Weapon 235 | 1 3 1 17 1 . 1 11 7 13 3 7 6 5 15 4 6 11 11 5 3 . 5 4 10 . 3 2 7 1 1 11 8 3 41 8 Energy Gun 47 | . . . 2 . . . 2 . 4 . 1 2 1 9 2 3 5 . . 2 . . . 3 . 2 . 2 . . . . 1 6 . Energy Cannon 75 | . . . 1 . . . . . . . 1 . 1 1 2 1 4 5 1 . . 3 2 1 . 1 1 5 1 1 7 6 1 21 8 Ballistic Gun 55 | 1 1 1 12 . . 1 5 3 5 1 2 1 . 1 . 2 2 6 2 . . . . 4 . . . . . . . 1 . 4 . Ballistic Cannon 10 | . . . . . . . . . . . . . . . . . . . . . . 1 . . . . . . . . 3 . . 6 . Launcher 21 | . 2 . . 1 . . 1 3 . 1 . 3 1 . . . . . 2 1 . 1 2 2 . . 1 . . . . . . . . Special Weapon 16 | . . . 2 . . . 3 . 4 . . . . 1 . . . . . . . . . . . . . . . . . 1 1 4 . Impact Weapon 1 | . . . . . . . . . . . . . . . . . . . . . . . . . . . . . . . 1 . . . . Slashing Weapon 9 | . . . . . . . . . . 1 3 . 2 3 . . . . . . . . . . . . . . . . . . . . . Piercing Weapon . | . . . . . . . . . . . . . . . . . . . . . . . . . . . . . . . . . . . . Special Melee Weapon 1 | . . . . . . . . 1 . . . . . . . . . . . . . . . . . . . . . . . . . . . Unidentified Prototypes 58 | . . . 5 . . . 1 . 2 . . . . . 2 1 1 . . . . . . . . 4 . 3 3 . 20 14 1 1 . Corrupted Parts 10 | . . . . . . . . . . . . . . . 1 2 7 . . . . . . . . . . . . . . . . . . System Corruption 49 | . . . . . . . . . . . . . . . 13 16 20 . . . . . . . . . . . . . . . . . . Parts Lost 40 | . . 1 10 . . . . . 3 2 . 3 . 5 . 1 2 2 . . . . . 1 . . . . . . . . . . 10 Power 1 | . . . . . . . . . 1 . . . . . . . . . . . . . . . . . . . . . . . . . . Propulsion 9 | . . . 5 . . . . . . . . . . 1 . . 1 1 . . . . . . . . . . . . . . . . 1 Utility 12 | . . . 1 . . . . . 1 2 . . . 2 . . . 1 . . . . . 1 . . . . . . . . . . 4 Weapon 18 | . . 1 4 . . . . . 1 . . 3 . 2 . 1 1 . . . . . . . . . . . . . . . . . 5 Highest Loss Streak 4 | . . 1 2 . . . . . 1 2 . 2 . 1 . 1 2 2 . . . . . 1 . . . . . . . . . . 4 To Critical Strikes 1 | . . . 1 . . . . . . . . . . . . . . . . . . . . . . . . . . . . . . . . Average Slot Usage (%) 86 | . 98 100 98 100 100 100 94 99 100 99 99 99 92 95 100 96 99 94 94 94 94 94 78 79 84 67 84 84 85 82 74 79 82 80 82 Engine 2 | . 14 14 11 11 11 11 9 9 9 9 7 7 6 6 5 . . . . . . . . . 4 2 . . . . . . . . . Reactor 6 | . . . . . . . . . . . . . . . . 6 6 11 11 11 11 11 10 10 5 7 10 9 9 8 6 8 12 9 3 Treads 15 | . 14 14 23 22 22 22 18 18 18 18 15 15 13 12 13 13 13 15 17 17 17 17 15 15 15 15 15 13 14 17 16 17 16 15 3 Wheel 3 | . 14 14 8 11 11 11 9 9 9 9 15 15 13 12 13 13 12 1 . . . . . . . . . . . . . . . . . Device 13 | . 11 14 10 11 11 11 12 17 18 18 16 15 17 12 13 22 19 16 17 17 17 17 14 14 15 14 15 19 18 18 15 16 16 7 11 Storage 5 | . 14 14 12 11 11 11 9 9 9 9 7 7 6 6 6 6 6 5 5 5 5 5 5 5 5 5 5 4 4 4 4 4 4 4 3 Processor 11 | . . . . . . . . . . . 7 7 6 6 6 6 6 9 11 11 11 11 10 10 10 10 10 14 14 14 13 13 8 18 15 Protection 7 | . . . 9 11 11 11 9 9 9 8 5 7 6 8 13 4 13 10 11 11 11 11 5 6 10 10 10 8 9 5 2 2 8 7 3 Energy Gun 5 | . 14 14 . . . . 12 18 18 18 17 15 10 15 16 10 16 3 . 4 11 11 10 7 10 . 10 5 . . . . 2 4 . Energy Cannon 5 | . . . . . . . . . . . . . 2 . 2 5 3 2 4 4 . 4 4 3 5 . 4 8 14 13 10 12 11 7 15 Ballistic Gun 3 | . 11 1 21 13 11 17 12 5 7 6 1 2 . 1 . 2 . 9 11 6 . . . 4 . . . . . . . . . 1 . Naked Turns 6 | . . . . . . . . . . . . . . . . . . . . . . . . . . . . . . . . . . . 6 Heaviest Build 237 | 13 31 31 60 62 62 62 74 112 109 109 114 114 142 141 128 150 147 176 179 179 175 177 188 188 182 161 174 185 186 189 220 231 214 237 182 Greatest Support 350 | 20 10 10 60 16 16 16 40 40 16 16 24 24 24 50 24 54 24 134 134 134 134 134 230 230 230 230 230 230 200 260 270 320 335 350 194 Greatest Overweight (x) 47 | 1 3 3 5 3 3 3 4 6 6 10 4 4 5 10 5 42 47 13 1 1 1 1 . . . . . 1 . . . . . 12 . Average Overweight (x) 1 | . 2 2 2 3 3 3 3 5 6 8 4 4 5 4 5 8 5 3 1 1 1 1 . . . . . . . . . . . . . Largest Inventory Capacity 25 | 8 15 15 25 20 20 20 20 25 25 25 25 25 25 25 25 25 25 25 25 25 25 25 25 25 25 25 25 25 25 25 25 25 25 25 20 Average Capacity 24 | 8 14 15 18 20 20 20 20 23 25 25 25 25 25 25 25 25 25 25 25 25 25 25 25 25 25 25 25 25 25 25 25 25 25 24 19 Most Carried 25 | 6 8 12 20 20 20 20 20 25 25 25 25 25 25 25 25 25 25 25 25 25 25 25 25 25 25 25 25 25 25 25 25 25 25 25 20 Average Carried 22 | 4 6 10 17 19 19 20 19 22 24 24 24 23 24 24 24 24 24 24 25 25 25 25 24 24 24 24 25 24 24 24 24 24 24 20 18 Final Capacity 25 | 8 15 15 20 20 20 20 20 25 25 25 25 25 25 25 25 25 25 25 25 25 25 25 25 25 25 25 25 25 25 25 25 25 25 20 5 Final Carried 25 | 5 8 11 20 20 20 20 20 25 25 25 25 23 25 25 25 25 25 25 25 25 25 25 25 25 25 25 25 25 25 25 25 25 25 20 5 Class Distribution -------------------- 33% | Scavenger-Mutant 16% | Generator-Mutant 14% | Mutant 11% | Scavenger-Tank 7% | Generator-Gunner 4% | Tank 3% | Bothacker-Mutant Dominant Class ---------------- Mutant | -10/Materials Mutant | -10/Mines Mutant | -9/Materials Mutant | -9/Mines Mutant | -9/Exiles Mutant | -8/Mines Tank | -8/Materials Mutant | -8/Garrison Tank | -8/Materials Bothacker-Mutant | -8/Garrison Bothacker-Gunner | -7/Factory Bothacker-Mutant | -7/Garrison Bothacker-Mutant | -6/Factory Scavenger-Tank | -6/Extension Scavenger-Mutant | -6/Cetus Scavenger-Mutant | -6/Archives Scavenger-Mutant | -6/Hub_04(d) Scavenger-Mutant | -5/Factory Scavenger-Mutant | -5/Upper Caves Scavenger-Mutant | -5/Upper Caves Scavenger-Mutant | -5/Warlord Scavenger-Mutant | -4/Proximity Caves Scavenger-Mutant | -4/Factory Scavenger-Mutant | -4/Upper Caves Scavenger-Mutant | -4/Upper Caves Scavenger-Mutant | -4/Zhirov Scavenger-Tank | -3/Proximity Caves Scavenger-Mutant | -3/Research Scavenger-Mutant | -3/Testing Mutant | -2/Research Mutant | -2/Quarantine Mutant | -2/Section 7 Generator-Mutant | -1/Access Generator-Mutant | -1/Command Generator-Gunner | -1/Access_0 Resources | -11 -10 -10 -9 -9 -9 -8 -8 -8 -8 -8 -7 -7 -6 -6 -6 -6 -6 -5 -5 -5 -5 -4 -4 -4 -4 -4 -3 -3 -3 -2 -2 -2 -1 -1 -1 ----------- Run | Scr Mat Min Mat Min Exi Min Mat Gar Mat Gar Fac Gar Fac Ext Cet Arc Hub Fac Upp Upp War Pro Fac Upp Upp Zhi Pro Res Tes Res Qua Sec Acc Com Ac0 Matter Collected 14165 | 244 128 91 1243 10 . 148 439 379 308 273 216 176 114 413 112 183 96 970 262 204 . 85 281 649 223 200 437 256 131 162 1220 775 379 2833 525 Remotely 606 | . . . . . . . . . . . . . . . . . . . . . . . . . . . . . . . . . . 606 . Salvage Created 20423 | 144 167 55 1715 . . 164 706 441 949 841 451 343 129 900 279 412 437 1094 189 259 . 90 833 221 165 . 398 . 287 313 889 2183 723 2937 1709 Parts 942 | 14 12 4 110 . . 15 48 15 46 29 24 22 8 34 17 27 21 51 8 12 . . 53 9 1 . 13 . 2 21 46 94 41 71 74 Haulers Intercepted 14 | . 1 . 5 . . . 1 . 3 . 2 . . . . . . . . . . . . . . . . . . 1 . 1 . . . Recyclers Shooed 9 | . . . 2 . . 1 1 . 1 . . . . 1 . . . 1 . . . . . . . . . . . . . 1 . 1 . Parts Field Recycled 10 | . . . . . . . . . . . . . . . . . . . . . . . . . . . . . . . . . . 10 . Retrieved Matter 48 | . . . . . . . . . . . . . . . . . . . . . . . . . . . . . . . . . . 48 . Parts Self-Destructed 33 | . . . . . . . . . . . . . . . . . . . 6 9 . . . 7 1 . 10 . . . . . . . . Prevented . | . . . . . . . . . . . . . . . . . . . . . . . . . . . . . . . . . . . . Kills | -11 -10 -10 -9 -9 -9 -8 -8 -8 -8 -8 -7 -7 -6 -6 -6 -6 -6 -5 -5 -5 -5 -4 -4 -4 -4 -4 -3 -3 -3 -2 -2 -2 -1 -1 -1 ------- Run | Scr Mat Min Mat Min Exi Min Mat Gar Mat Gar Fac Gar Fac Ext Cet Arc Hub Fac Upp Upp War Pro Fac Upp Upp Zhi Pro Res Tes Res Qua Sec Acc Com Ac0 Combat Hostiles Destroyed 293 | . 5 3 28 . . 7 16 14 10 11 5 20 1 10 3 1 7 14 6 4 . 3 22 8 2 . 9 . 4 5 8 25 10 14 18 Melee 1 | . . . . . . . . . . . . . . . . . . . . . . . . . . . . . 1 . . . . . . Guns 127 | . 1 . 28 . . 5 16 7 10 7 4 3 1 6 1 1 5 14 2 1 . 1 8 1 1 . 4 . . . . . . . . Cannons 69 | . . . . . . . . . . . . . . . . . . . . . . . 4 1 . . . . 2 5 4 21 9 10 13 AOE 62 | . 3 3 . . . 2 . 7 . 2 . 17 . . . . . . 4 3 . 2 9 6 . . 4 . . . . . . . . Classes Destroyed 21 | 2 5 1 3 . . . 1 . 2 . 1 . . 1 . 1 . . 2 . . . . . . . . . . . 1 1 . . . Worker 8 | . 1 1 2 . . . 1 . . . . . . . . . . 1 . . . . . . . . . . 1 . . 1 . . . Builder 10 | . . . 2 . . . 2 . 1 . . . 1 1 . . . . . . . . 1 . . . . . . . . 2 . . . Tunneler 9 | 5 . . 1 . . 2 . . . . . . . . . . . . . . . . 1 . . . . . . . . . . . . Hauler 14 | . 1 . 5 . . . 1 . 3 . 2 . . . . . . . . . . . . . . . . . . 1 . 1 . . . Recycler 14 | 1 . . 3 . . . . . 2 . 1 . . 2 . . . 1 . . . . . . . . . . . . . . . 4 . Minesweeper 1 | . . . . . . . . . . . . . . . . . . . 1 . . . . . . . . . . . . . . . . Mechanic 3 | . . . . . . . 1 . . . . . 1 . . . . . . . . . 1 . . . . . . . . . . . . Operator 10 | . . . . . . . . . . . . . . . . 9 . 1 . . . . . . . . . . . . . . . . . Drone 2 | . . . . . . . . . . . . . . . . . . . 1 . . . 1 . . . . . . . . . . . . Watcher 17 | . 1 . 4 . . . 1 . 4 . 1 . . . 1 . . 1 . . . . . . . . . . . . . 4 . . . Swarmer 72 | . 3 . 6 . . 4 7 3 . . . 15 . . . . . . 4 3 . . 13 5 . . 5 . . 4 . . . . . Grunt 82 | . 2 3 14 . . 2 5 10 4 9 2 5 . 3 . . 5 3 2 . . 3 . 1 . . . . 2 . . 4 3 . . Brawler 1 | . . . . . . . . . 1 . . . . . . . . . . . . . . . . . . . . . . . . . . Duelist 6 | . . . 1 . . 1 . 1 . 1 . . . 1 . . . . . . . . . . . . . . . . . 1 . . . Sentry 31 | . . . 7 . . . 4 . 4 1 1 . . 4 . 1 1 2 . . . . . 1 . . 1 . . . . 1 1 2 . Hunter 8 | . . . . . . . . . 1 . . . . . . . . . . 1 . . 2 . 2 . . . . . . 2 . . . Programmer 51 | . . . . . . . . . . . 2 . 1 . . . 1 9 . . . . 7 . . . 3 . 2 1 . 13 6 6 . Behemoth 3 | . . . . . . . . . . . . . . 2 . . . . . . . . . 1 . . . . . . . . . . . Cetus Guard 3 | . . . . . . . . . . . . . . . 3 . . . . . . . . . . . . . . . . . . . . Quarantine Guard 7 | . . . . . . . . . . . . . . . . . . . . . . . . . . . . . . . 7 . . . . S7 Guard 2 | . . . . . . . . . . . . . . . . . . . . . . . . . . . . . . . . 2 . . . M Guard 2 | . . . . . . . . . . . . . . . . . . . . . . . . . . . . . . . . . . 2 . Enhanced Grunt 10 | . . . . . . . . . . . . . . . . . . . . . . . . . . . . . . . . . . . 10 Enhanced Hunter 5 | . . . . . . . . . . . . . . . . . . . . . . . . . . . . . . . . . . . 5 Combat Programmer 2 | . . . . . . . . . . . . . . . . . . . . . . . . . . . . . . . . . . 2 . Alpha 7 2 | . . . . . . . . . . . . . . . . . . . . . . . . . . . . . . . . 2 . . . Fortress 1 | . . . . . . . . . . . . . . . . . . . . . . . . . . . . . . . 1 . . . . Decomposer 1 | . . . . . . . . . . . . . . . . . . . . . . . . 1 . . . . . . . . . . . Assembled 1 | . . 1 . . . . . . . . . . . . . . . . . . . . . . . . . . . . . . . . . Best Kill Streak 8 | 4 4 2 5 . . 5 7 5 3 4 3 8 1 3 2 3 4 5 4 3 . 3 5 4 2 . 5 . 2 3 2 5 3 5 3 Combat Bots Only 8 | . 3 2 3 . . 4 7 5 2 4 2 8 1 2 2 1 4 3 4 3 . 3 5 4 2 . 5 . 2 3 2 4 3 5 3 Max Kills in Single Turn 4 | 1 1 2 1 . . 2 2 3 2 2 2 3 1 1 1 1 1 2 4 2 . 1 4 2 1 . 3 . 1 1 1 2 1 2 1 Gunslinging 1 | . . . . . . . 1 . . . . . . . . . . . . . . . . . . . . . . . . . . . . Exploded 4 | . 1 1 . . . 1 . 3 . 2 . 3 . . . . . . 4 2 . 1 4 2 . . 3 . . . . . . . . Melee 1 | . . . . . . . . . . . . . . . . . . . . . . . . . . . . . 1 . . . . . . Uniques/NPCs Destroyed 5 | . . . . . . . . . . . . . . . . . . . . . . . . . . . . . . . . . . 2 3 MAIN.C Shell (-1/Command) MAIN.C (-1/Command) A8 (-1/Access_0) A6 (-1/Access_0) Architect (-1/Access_0) Combat | -11 -10 -10 -9 -9 -9 -8 -8 -8 -8 -8 -7 -7 -6 -6 -6 -6 -6 -5 -5 -5 -5 -4 -4 -4 -4 -4 -3 -3 -3 -2 -2 -2 -1 -1 -1 -------- Run | Scr Mat Min Mat Min Exi Min Mat Gar Mat Gar Fac Gar Fac Ext Cet Arc Hub Fac Upp Upp War Pro Fac Upp Upp Zhi Pro Res Tes Res Qua Sec Acc Com Ac0 Damage Taken 27940 | 3 149 118 2127 . . 224 713 518 451 377 188 654 63 1582 686 74 1117 995 56 81 . 138 1339 917 482 . 290 88 189 81 1999 2680 556 2369 6636 Core 3321 | . 45 13 257 . . . 62 45 36 13 40 61 . 90 105 . 134 43 . 7 . . 25 47 34 . 12 . 11 . 444 648 179 275 695 Absorbed by Shields 13259 | . . . . . . . . . . . . . . 119 64 . . 279 57 92 . 146 331 639 232 . 275 93 197 86 817 617 289 2089 6837 Reduced by Siege Mode 1313 | . . . . . . . . . . . . . . . . . . 32 . . . . 100 102 19 . 22 . 23 9 243 345 5 257 156 Redirected to Core 497 | . . . . . . . . . . . . . . . . . . . . . . . . . . . . . . . 155 342 . . . Redirected to Shielding 28 | . . . . . . . . . . . . . . . . . . 28 . . . . . . . . . . . . . . . . . Regen/Repaired (Parts) 2070 | . . . 324 . . . . . . . . . . . . . . 873 . . . . . . . . . . . . 873 . . . . Core Remaining (%) 72 | 100 . 76 . . . 35 . . . 71 . 85 . . . . 61 . . . . 95 . . . . 89 . 99 . . 57 . . 31 Volleys Fired 1494 | 17 24 13 146 . 2 15 67 28 57 26 23 23 2 48 19 45 25 68 36 24 . 17 67 70 28 . 15 26 21 9 63 107 35 230 98 Largest 4 | 2 2 1 2 . 1 2 3 3 3 3 3 3 3 3 3 3 3 3 3 3 . 3 3 3 3 . 3 3 3 3 3 3 3 4 4 Hottest 480 | 90 70 30 100 . 33 46 137 137 168 137 167 167 167 193 240 190 190 170 105 250 . 250 250 250 250 . 250 266 294 316 316 360 360 480 480 Shots Fired 3147 | 34 42 13 270 . 2 24 141 51 149 69 69 37 5 129 28 50 60 149 55 28 . 21 122 106 39 . 41 30 47 19 111 252 62 511 381 Gun 1412 | 34 36 . 263 . 1 18 116 39 138 66 69 23 3 124 16 20 52 125 30 3 . 4 59 49 12 . 27 4 . . . . . 81 . Cannon 1600 | . . . . . . . . . . . . . 2 1 12 30 8 24 24 22 . 12 61 48 27 . 12 26 47 19 111 251 62 420 381 Launcher 78 | . 6 13 . . 1 6 1 12 . 3 . 14 . . . . . . 1 3 . 5 2 9 . . 2 . . . . . . . . Special 57 | . . . 7 . . . 24 . 11 . . . . 4 . . . . . . . . . . . . . . . . . 1 . 10 . Kinetic 791 | 14 18 . 258 . 1 18 67 13 43 21 21 3 . 5 . . . 100 30 1 . . . 41 . . . . . . . . . 137 . Thermal 2204 | 17 18 . 12 . . . 73 26 106 45 48 20 3 119 16 50 60 49 24 24 . 16 120 56 39 . 39 30 47 19 111 251 62 323 381 Explosive 78 | . 6 13 . . 1 6 1 12 . 3 . 14 . . . . . . 1 3 . 5 2 9 . . 2 . . . . . . . . Electromagnetic 59 | 3 . . . . . . . . . . . . 2 1 12 . . . . . . . . . . . . . . . . . . 41 . Robot Hit Streak 40 | 10 7 4 13 . . 6 12 8 15 8 12 6 3 15 9 10 21 34 8 10 . 10 15 40 20 . 39 . 14 7 14 21 11 37 29 Robot Miss Streak 8 | 2 7 . 3 . . 3 8 4 4 4 3 3 1 1 3 3 2 3 3 1 . 1 2 2 . . 2 1 2 1 1 4 1 2 6 Penetration Max 1 | . . . . . . . . . . . . . . . . . . 1 1 . . . . . . . . . . . . . . 1 . Secondary Targets 10 | . 1 . . . . . 4 . 1 1 1 . . 1 . . . 1 . . . . . . . . . . . . . . . . . Max Gunslinging Chain 1 | . 1 . . . . . 1 . 1 1 1 . . 1 . . . 1 . . . . . . . . . . . . . . . . . Shots Hit Robots 1875 | 25 23 1 179 . . 12 64 28 88 57 48 18 6 109 21 33 37 94 19 8 . 9 53 52 18 . 33 . 25 7 53 139 25 318 273 Core Hits 837 | 9 14 13 67 . . 14 35 27 35 27 17 33 3 29 11 21 15 32 10 6 . 9 43 16 5 . 15 . 6 8 23 50 13 107 124 Critical Kills 20 | . 1 . . . . . . . . . . . . . . . . 4 . . . . . . . . . . . . 3 5 1 1 5 Critical Parts Destroyed 11 | . . . . . . . . . . . . . . . . . . 6 3 . . . . 1 . . . . . . . . . 1 . Critical Strikes 85 | 3 4 . . . . . 2 3 11 4 4 1 . 8 2 1 . 11 3 . . . . 8 . . . . . . 3 5 1 6 5 Burn 41 | 3 3 . . . . . 2 3 11 3 4 1 . 8 2 1 . . . . . . . . . . . . . . . . . . . Meltdown 15 | . . . . . . . . . . . . . . . . . . . . . . . . . . . . . . . 3 5 1 1 5 Destroy 25 | . 1 . . . . . . . . . . . . . . . . 11 3 . . . . 8 . . . . . . . . . 2 . Blast 3 | . . . . . . . . . . . . . . . . . . . . . . . . . . . . . . . . . . 3 . Sever 1 | . . . . . . . . . . 1 . . . . . . . . . . . . . . . . . . . . . . . . . Melee Attacks 51 | . . . . . . . . 2 . 12 12 . 13 8 . . . . . . . . . . . . . . . . 4 . . . . Kinetic 4 | . . . . . . . . . . . . . . . . . . . . . . . . . . . . . . . 4 . . . . Impact . | . . . . . . . . . . . . . . . . . . . . . . . . . . . . . . . . . . . . Slashing 45 | . . . . . . . . . . 12 12 . 13 8 . . . . . . . . . . . . . . . . . . . . . Piercing . | . . . . . . . . . . . . . . . . . . . . . . . . . . . . . . . . . . . . Sneak Attacks 6 | . . . . . . . . . . . . . 3 3 . . . . . . . . . . . . . . . . . . . . . Combat Hostiles . | . . . . . . . . . . . . . . . . . . . . . . . . . . . . . . . . . . . . Follow-up Attacks . | . . . . . . . . . . . . . . . . . . . . . . . . . . . . . . . . . . . . Damage Inflicted 65546 | 271 430 569 2507 . . 616 1215 1247 1585 1589 965 1556 265 2294 500 1076 873 2922 778 570 . 985 2894 2092 544 . 1480 38 1057 353 1959 6076 1181 12942 12117 Guns 21119 | 264 254 . 2438 . . 163 1095 429 1568 748 917 223 43 2033 292 390 873 2874 517 38 . 48 1173 1146 354 . 659 . . . . . . 2580 . Cannons 35237 | . . . . . . . . . . . . . . . 208 669 . . . 161 . 64 720 127 190 . 395 . 950 295 1801 6027 1175 10338 12117 Explosions 7255 | . 176 562 . . . 451 59 818 . 191 . 1333 . . . . . . 261 371 . 873 953 781 . . 426 . . . . . . . . Melee 1286 | . . . . . . . . . . 650 . . 222 261 . . . . . . . . . . . . . . . . 153 . . . . Ramming 601 | 7 . 7 69 . . 2 13 . 17 . 48 . . . . 17 . 48 . . . . 48 38 . . . 38 107 58 5 49 6 24 . Kinetic 14038 | 85 82 . 2413 . . 163 653 158 474 220 238 15 . 77 . . . 2269 517 . . . . 999 . . . . . . 153 . . 5522 . Thermal 42124 | 164 172 . 25 . . . 490 271 1094 528 679 208 43 1956 292 1059 873 605 . 199 . 112 2311 274 544 . 1054 . 950 295 1801 6027 1175 6806 12117 Explosive 6633 | . 176 562 . . . 451 59 818 . 191 . 1333 . . . . . . 261 371 . 873 331 781 . . 426 . . . . . . . . Electromagnetic 1017 | 15 . . . . . . . . . . . . . . 208 . . . . . . . 204 . . . . . . . . . . 590 . Impact . | . . . . . . . . . . . . . . . . . . . . . . . . . . . . . . . . . . . . Slashing 1133 | . . . . . . . . . . 650 . . 222 261 . . . . . . . . . . . . . . . . . . . . . Piercing . | . . . . . . . . . . . . . . . . . . . . . . . . . . . . . . . . . . . . Highest Corruption 25 | . . . . . . . . . 2 2 1 1 2 2 15 15 25 4 4 4 4 . 5 5 5 5 8 . 5 . . . . . . Average Corruption 4 | . . . . . . . . . 2 2 1 1 2 2 10 10 9 3 4 4 4 . 3 5 5 5 6 . 4 . . . . . . Corruption Purged 34 | . . . . . . . . . . . . . . . . 31 . 3 . . . . . . . . . . . . . . . . . Corruption Blocked 1 | . . . . . . . . . . . . . . . . . . . . . . . . . . . . . . . . 1 . . . Effects 304 | . . . . . . . . . 1 10 . 2 5 19 15 23 2 31 34 26 4 . 8 47 24 8 35 . 10 . . . . . . Message Errors 80 | . . . . . . . . . . 4 . 1 2 5 6 5 . 6 12 7 1 . 1 11 9 2 6 . 2 . . . . . . Matter Fused 72 | . . . . . . . . . . 4 . . 1 6 3 5 1 6 8 7 . . . 8 6 1 12 . 4 . . . . . . Heat Flow Errors 49 | . . . . . . . . . . . . . . 5 1 4 . 5 5 4 1 . 1 13 6 . 4 . . . . . . . . Energy Discharges 24 | . . . . . . . . . . . . 1 . 1 2 4 . 4 2 1 . . 1 3 1 3 . . 1 . . . . . . Parts Rejected 1 | . . . . . . . . . . . . . . 1 . . . . . . . . . . . . . . . . . . . . . Data Loss (minor) 27 | . . . . . . . . . 1 . . . . . 1 1 . 3 3 1 2 . 2 5 1 2 4 . 1 . . . . . . Data Loss (major) 15 | . . . . . . . . . . 1 . . . 1 1 . . 2 . 3 . . 1 1 . . 5 . . . . . . . . Misfires 14 | . . . . . . . . . . 1 . . 1 . . . 1 1 1 2 . . 2 3 . . 1 . 1 . . . . . . Alerts 8 | . . . . . . . . . . . . . 1 . . 1 . . 1 1 . . . 2 . . 2 . . . . . . . . Weapon Failures 14 | . . . . . . . . . . . . . . . 1 3 . 4 2 . . . . 1 1 . 1 . 1 . . . . . . Overload Shots 2 | . . . . . . . . . . . . . . . 2 . . . . . . . . . . . . . . . . . . . . Overflow Damage 1258 | . . 20 . . . . . 62 . 3 . 73 45 . . 32 . . . 63 . 46 61 34 . . 58 . 138 . . 227 44 275 77 Projectiles 764 | . . . . . . . . . . . . . . . . 26 . . . 16 . 1 10 . . . 3 . 85 . . 227 44 275 77 Explosions 353 | . . 20 . . . . . 62 . . . 73 . . . . . . . 47 . 45 51 . . . 55 . . . . . . . . Melee 141 | . . . . . . . . . . 3 . . 45 . . 6 . . . . . . . 34 . . . . 53 . . . . . . Knockbacks 11 | . . . . . . . . . 1 . . . . . . . . . . . . . . . . . . 1 1 . . . . 8 . Impact 3 | . . . . . . . . . 1 . . . . . . . . . . . . . . . . . . 1 1 . . . . . . Kinetic 8 | . . . . . . . . . . . . . . . . . . . . . . . . . . . . . . . . . . 8 . Secondary . | . . . . . . . . . . . . . . . . . . . . . . . . . . . . . . . . . . . . Self-Inflicted Damage 466 | 3 23 59 5 . . 43 . 90 . . . 61 . . . . . . . 43 . . 81 13 . . 45 . . . . . . . . Shots 15 | . 1 2 . . . 1 . 4 . . . 2 . . . . . . . 2 . . 1 1 . . 1 . . . . . . . . Rammed 46 | 1 . 1 6 . . 1 4 . 2 . 9 . . . . 2 . 3 . . . . 3 1 . . . 1 3 4 1 1 1 2 . Targets Rammed 51 | 1 . 1 9 . . 1 4 . 2 . 9 . . . . 2 . 3 . . . . 3 1 . . . 1 4 4 1 2 1 2 . Kicked . | . . . . . . . . . . . . . . . . . . . . . . . . . . . . . . . . . . . . Crushed 5 | . . . 3 . . . . . . . . . . . . . . . . . . . . . . . . . 1 . . 1 . . . Highest Temperature 652 | 140 40 12 14 . . 14 226 52 90 99 72 45 30 261 150 262 8 308 242 233 207 222 234 300 241 . 242 202 90 381 652 181 140 178 158 Average Temperature 80 | 62 13 12 8 . . 12 60 23 26 38 28 17 20 84 46 130 4 60 98 84 119 113 38 47 72 . 78 55 34 149 142 109 75 119 125 Received Heat Transfer 2971 | . 66 45 660 . . 81 270 207 180 216 42 72 . 356 81 9 135 93 24 . . 24 . 61 4 . 8 5 23 . 57 60 64 128 . Effects 12 | . . . . . . . 2 . . . . . . 3 . . . . . . . . . . . . . . . 2 5 . . . . Shutdowns 4 | . . . . . . . . . . . . . . . . . . . . . . . . . . . . . . 2 2 . . . . Energy Bleed 1 | . . . . . . . . . . . . . . . . . . . . . . . . . . . . . . . 1 . . . . Interference 6 | . . . . . . . 2 . . . . . . 3 . . . . . . . . . . . . . . . . 1 . . . . Damage (core) 1 | . . . . . . . . . . . . . . . . . . . . . . . . . . . . . . . 1 . . . . Siege Activations 58 | . . . . . . . . . . . . . . . . . . 7 . 1 . . 6 3 1 . 3 . 2 2 5 10 4 5 9 Total Turns 2144 | . . . . . . . . . . . . . . . . . . 212 . 7 . . 92 96 23 . 29 . 37 42 121 231 67 1077 110 Longest Duration 881 | . . . . . . . . . . . . . . . . . . 81 . 7 . . 33 61 23 . 12 . 26 25 61 41 37 881 32 Robots Corrupted 7 | . . . . . . . . . . . . . . . 2 . . . . . . . . . . . . . . . . . . 5 . Combat Hostiles 7 | . . . . . . . . . . . . . . . 2 . . . . . . . . . . . . . . . . . . 5 . Parts Fried 17 | . . . . . . . . 1 . . . . . . 1 1 . . . . . . 1 . . . . . 1 . . . . 12 . Impact Corruptions 5 | . . . 1 . . . . . . . . . . . . 1 . . . . . . . 1 . . . . 2 . . . . . . Robots Melted 32 | 1 1 . . . . . . . 1 2 1 . . 4 . . 2 . . . . . 1 . 1 . 1 . 1 . 3 5 1 2 5 Combat Hostiles 29 | . 1 . . . . . . . . 2 1 . . 4 . . 2 . . . . . 1 . 1 . 1 . 1 . 3 4 1 2 5 Parts Melted 158 | 1 . . . . . . 3 4 11 2 7 . . 16 . 2 2 2 . . . . 6 . 4 . 16 . 8 2 10 23 6 9 24 Heat Transferred 42552 | 703 740 . 74 . . . 1210 814 3182 1369 1628 518 74 4366 666 1753 1369 777 . 287 . 174 2582 422 744 . 1327 . 1250 285 2203 5180 925 2775 5155 Parts Sabotaged . | . . . . . . . . . . . . . . . . . . . . . . . . . . . . . . . . . . . . Parts Stolen . | . . . . . . . . . . . . . . . . . . . . . . . . . . . . . . . . . . . . Parts Stripped . | . . . . . . . . . . . . . . . . . . . . . . . . . . . . . . . . . . . . Power Chain Reactions . | . . . . . . . . . . . . . . . . . . . . . . . . . . . . . . . . . . . . Missiles Intercepted 20 | . . . . . . . . . . . . . . . . . . . . . . . . . . . . . . . . . . 20 . Alert | -11 -10 -10 -9 -9 -9 -8 -8 -8 -8 -8 -7 -7 -6 -6 -6 -6 -6 -5 -5 -5 -5 -4 -4 -4 -4 -4 -3 -3 -3 -2 -2 -2 -1 -1 -1 ------- Run | Scr Mat Min Mat Min Exi Min Mat Gar Mat Gar Fac Gar Fac Ext Cet Arc Hub Fac Upp Upp War Pro Fac Upp Upp Zhi Pro Res Tes Res Qua Sec Acc Com Ac0 Peak Influence 791 | 30 375 275 503 195 . 208 492 717 371 381 218 563 351 233 308 416 424 281 . . . . 523 . . . . 39 86 167 300 791 754 587 . Initial 482 | . 19 145 67 195 . . 80 236 349 30 199 51 295 78 15 123 26 106 . . . . . . . . . . . 11 . 57 474 482 . Average 173 | 13 145 174 246 195 . 79 312 500 149 221 96 413 258 79 137 227 251 112 . . . . 273 . . . . 8 31 87 61 222 598 220 . Maximum Alert Level 3 | . 1 1 2 . . 1 2 3 1 1 1 2 1 1 1 2 2 1 . . . . 2 . . . . . . . 1 3 3 3 . Low Security (%) 45 | 100 64 58 41 100 . 96 17 . 68 47 70 18 33 97 69 31 17 82 . . . . 29 . . . . 100 100 100 99 61 . 4 . Level 1 22 | . 35 41 32 . . 3 55 28 31 52 29 10 66 2 30 51 68 17 . . . . 37 . . . . . . . . 14 . 26 . Level 2 29 | . . . 25 . . . 27 60 . . . 71 . . . 16 13 . . . . . 32 . . . . . . . . 21 98 64 . Level 3 2 | . . . . . . . . 10 . . . . . . . . . . . . . . . . . . . . . . . 2 1 4 . Level 4 . | . . . . . . . . . . . . . . . . . . . . . . . . . . . . . . . . . . . . Level 5 . | . . . . . . . . . . . . . . . . . . . . . . . . . . . . . . . . . . . . High Security . | . . . . . . . . . . . . . . . . . . . . . . . . . . . . . . . . . . . . Max Security . | . . . . . . . . . . . . . . . . . . . . . . . . . . . . . . . . . . . . Squads Dispatched 40 | . 5 . 2 . . . 2 . . . 2 . . 1 . . 2 7 . . . . 4 . . . . 3 1 1 . 6 2 2 . Investigation 7 | . 3 . 1 . . . 1 . . . . . . . . . 1 . . . . . . . . . . 1 . . . . . . . Extermination 24 | . . . . . . . . . . . 2 . . . . . 1 6 . . . . 4 . . . . . 1 1 . 5 2 2 . Reinforcement 8 | . 2 . 1 . . . 1 . . . . . . 1 . . . 1 . . . . . . . . . 2 . . . . . . . Assault 1 | . . . . . . . . . . . . . . . . . . . . . . . . . . . . . . . . 1 . . . Garrison . | . . . . . . . . . . . . . . . . . . . . . . . . . . . . . . . . . . . . Intercept . | . . . . . . . . . . . . . . . . . . . . . . . . . . . . . . . . . . . . Searches Triggered . | . . . . . . . . . . . . . . . . . . . . . . . . . . . . . . . . . . . . Construction Impeded 1 | . . . . . . . . . . . . . . 1 . . . . . . . . . . . . . . . . . . . . . Haulers Reinforced . | . . . . . . . . . . . . . . . . . . . . . . . . . . . . . . . . . . . . Active Scanning Responses . | . . . . . . . . . . . . . . . . . . . . . . . . . . . . . . . . . . . . Cargo Convoy Interrupts . | . . . . . . . . . . . . . . . . . . . . . . . . . . . . . . . . . . . . Stealth | -11 -10 -10 -9 -9 -9 -8 -8 -8 -8 -8 -7 -7 -6 -6 -6 -6 -6 -5 -5 -5 -5 -4 -4 -4 -4 -4 -3 -3 -3 -2 -2 -2 -1 -1 -1 --------- Run | Scr Mat Min Mat Min Exi Min Mat Gar Mat Gar Fac Gar Fac Ext Cet Arc Hub Fac Upp Upp War Pro Fac Upp Upp Zhi Pro Res Tes Res Qua Sec Acc Com Ac0 Distress Signals 56 | . . . 4 . . . 3 . 1 . 1 . . 2 2 . 1 2 . . . . 1 . . . . 10 . . . 3 1 25 . Communications Jammed 121 | . . . . . . . . . . . . . . . . . . 1 . . . . 55 . . . . . . 1 . 64 . . . Distress Signals 121 | . . . . . . . . . . . . . . . . . . 1 . . . . 55 . . . . . . 1 . 64 . . . Times Spotted 483 | . 16 3 43 . . 7 29 17 17 11 9 19 2 27 10 20 20 18 7 5 . 3 34 9 3 . 9 12 4 5 10 41 16 15 42 Peak Tracking Total 9 | . 4 2 5 . 9 4 9 5 3 7 4 7 1 3 5 1 5 3 2 4 . 3 6 4 2 . 5 2 2 2 2 4 3 4 4 Tactical Retreats 24 | . . . 5 . . . . . . 1 . 2 . 2 . . . 1 4 1 . . 3 1 . . . . . . . 3 1 . . Traps | -11 -10 -10 -9 -9 -9 -8 -8 -8 -8 -8 -7 -7 -6 -6 -6 -6 -6 -5 -5 -5 -5 -4 -4 -4 -4 -4 -3 -3 -3 -2 -2 -2 -1 -1 -1 ------- Run | Scr Mat Min Mat Min Exi Min Mat Gar Mat Gar Fac Gar Fac Ext Cet Arc Hub Fac Upp Upp War Pro Fac Upp Upp Zhi Pro Res Tes Res Qua Sec Acc Com Ac0 Traps Triggered 22 | . . . . . . . . 7 . 1 . . . 2 . . . 1 . . . . 2 . . . . . 1 . 1 1 . 6 . Indirectly 2 | . . . . . . . . . . . . . . . . . . . . . . . 2 . . . . . . . . . . . . Trap Hack Attempts . | . . . . . . . . . . . . . . . . . . . . . . . . . . . . . . . . . . . . Triggered . | . . . . . . . . . . . . . . . . . . . . . . . . . . . . . . . . . . . . Disarmed . | . . . . . . . . . . . . . . . . . . . . . . . . . . . . . . . . . . . . Reprogrammed . | . . . . . . . . . . . . . . . . . . . . . . . . . . . . . . . . . . . . Reused . | . . . . . . . . . . . . . . . . . . . . . . . . . . . . . . . . . . . . Traps Extracted . | . . . . . . . . . . . . . . . . . . . . . . . . . . . . . . . . . . . . Installed . | . . . . . . . . . . . . . . . . . . . . . . . . . . . . . . . . . . . . Triggered 9 | . . . . . . . . . . . . . . . . . . . 1 . . . . 1 . . . . . . . . . 7 . Machines | -11 -10 -10 -9 -9 -9 -8 -8 -8 -8 -8 -7 -7 -6 -6 -6 -6 -6 -5 -5 -5 -5 -4 -4 -4 -4 -4 -3 -3 -3 -2 -2 -2 -1 -1 -1 ---------- Run | Scr Mat Min Mat Min Exi Min Mat Gar Mat Gar Fac Gar Fac Ext Cet Arc Hub Fac Upp Upp War Pro Fac Upp Upp Zhi Pro Res Tes Res Qua Sec Acc Com Ac0 Machines Disabled 80 | . 3 . . . 1 . 2 3 . 1 . . 1 1 1 2 3 3 . . . . 12 . . . . . 3 1 9 16 2 12 4 Max in Single Turn 6 | . 1 . . . 1 . 2 1 . 1 . . 1 1 1 1 . 1 . . . . 6 . . . . . 1 1 1 1 1 2 1 Garrison Access 3 | . . . . . . . . . . . . . . . . . . 1 . . . . 1 . . . . 1 . . . . . . . Garrison Relay 4 | . . . . . . . . 3 . 1 . . . . . . . . . . . . . . . . . . . . . . . . . Phase Generator 1 | . . . . . . . . . . . . . . . . . . . . . . . . . . . . . . . . . . 1 . Network Hub 2 | . . . . . . . . . . . . . . . . . 2 . . . . . . . . . . . . . . . . . . Machines Sabotaged . | . . . . . . . . . . . . . . . . . . . . . . . . . . . . . . . . . . . . Garrisons Compromised . | . . . . . . . . . . . . . . . . . . . . . . . . . . . . . . . . . . . . Overloaded Fab Kills . | . . . . . . . . . . . . . . . . . . . . . . . . . . . . . . . . . . . . Hacking | -11 -10 -10 -9 -9 -9 -8 -8 -8 -8 -8 -7 -7 -6 -6 -6 -6 -6 -5 -5 -5 -5 -4 -4 -4 -4 -4 -3 -3 -3 -2 -2 -2 -1 -1 -1 --------- Run | Scr Mat Min Mat Min Exi Min Mat Gar Mat Gar Fac Gar Fac Ext Cet Arc Hub Fac Upp Upp War Pro Fac Upp Upp Zhi Pro Res Tes Res Qua Sec Acc Com Ac0 Machines Accessed 102 | . 5 1 7 . 2 1 5 . 7 . 6 . 2 9 1 . 3 10 3 . . . 7 . 2 4 . 5 1 1 9 7 2 2 . Terminals 60 | . 3 . 5 . . 1 2 . 5 . 2 . 2 9 1 . 3 4 . . . . 5 . 1 . . 1 1 . 6 5 2 2 . Fabricators 4 | . . . . . . . . . . . 2 . . . . . . 1 . . . . . . . . . 1 . . . . . . . Repair Stations 11 | . . . 1 . . . . . 1 . . . . . . . . 4 . . . . 1 . . . . 2 . . 2 . . . . Recycling Units 4 | . 2 . 1 . . . 1 . . . . . . . . . . . . . . . . . . . . . . . . . . . . Scanalyzers 5 | . . . . . . . 1 . . . . . . . . . . . . . . . . . . . . . . 1 1 2 . . . Garrison Access 7 | . . . . . . . 1 . 1 . 2 . . . . . . 1 . . . . 1 . . . . 1 . . . . . . . Total Hacks 271 | . 15 1 16 . 2 1 11 . 21 . 9 . 4 21 1 . 8 47 8 . . . 21 . 2 17 . 11 6 2 19 18 7 3 . Successful 131 | . 7 1 8 . 2 . 6 . 9 . 2 . 1 9 . . 5 25 8 . . . 5 . 2 17 . 3 4 1 8 4 2 2 . Failed 140 | . 8 . 8 . . 1 5 . 12 . 7 . 3 12 1 . 3 22 . . . . 16 . . . . 8 2 1 11 14 5 1 . Catastrophic 24 | . . . 1 . . 1 . . . . . . 1 1 1 . 1 2 . . . . 6 . . . . 4 . . 4 1 1 . . Database Lockouts . | . . . . . . . . . . . . . . . . . . . . . . . . . . . . . . . . . . . . Manual 117 | . 9 . 10 . 1 1 6 . 14 . 7 . . 4 1 . 6 21 . . . . 13 . . . . 3 5 . 3 8 4 1 . Terminals 165 | . 12 . 13 . . 1 7 . 18 . 3 . 4 21 1 . 8 22 . . . . 19 . 1 . . 2 6 . 8 9 7 3 . Fabricators 9 | . . . . . . . . . . . 4 . . . . . . 4 . . . . . . . . . 1 . . . . . . . Repair Stations 40 | . . . 2 . . . . . 2 . . . . . . . . 20 . . . . 1 . . . . 7 . . 8 . . . . Recycling Units 5 | . 3 . 1 . . . 1 . . . . . . . . . . . . . . . . . . . . . . . . . . . . Scanalyzers 16 | . . . . . . . 2 . . . . . . . . . . . . . . . . . . . . . . 2 3 9 . . . Garrison Access 7 | . . . . . . . 1 . 1 . 2 . . . . . . 1 . . . . 1 . . . . 1 . . . . . . . Terminal Hacks 71 | . 3 1 4 . 2 . 1 . 5 . . . 1 7 . . 3 7 8 . . . 3 . 2 17 . . 2 . 1 1 2 1 . Record 13 | . . . . . 1 . . . . . . . . . . . . . 6 . . . . . 1 5 . . . . . . . . . Part Schematic 6 | . 1 . 1 . . . . . . . . . . . . . . . . . . . . . . 4 . . . . . . . . . Robot Analysis 4 | . . . . . . . . . . . . . . . . . . . . . . . . . . 4 . . . . . . . . . Prototype ID Bank 5 | . . . . . . . . . . . . . . . . . . . . . . . . . . 4 . . . . 1 . . . . Open Door 13 | . . 1 . . . . . . . . . . 1 6 . . . . 2 . . . . . 1 . . . . . . 1 . 1 . Branch Access Points 3 | . . . . . . . . . . . . . . . . . . 1 . . . . 1 . . . . . . . . . 1 . . Terminal Index 3 | . . . . . . . . . . . . . . . . . . 1 . . . . . . . . . . 1 . . . 1 . . Repair Station Index 1 | . . . . . . . . . . . . . . . . . . 1 . . . . . . . . . . . . . . . . . Alert Level 1 | . . . 1 . . . . . . . . . . . . . . . . . . . . . . . . . . . . . . . . Unreport Threat 5 | . . . . . . . . . 2 . . . . 1 . . . . . . . . 2 . . . . . . . . . . . . Locate Traps 7 | . 1 . 1 . . . . . 2 . . . . . . . 1 2 . . . . . . . . . . . . . . . . . Maintenance Status 1 | . . . . . . . . . . . . . . . . . . 1 . . . . . . . . . . . . . . . . . Hauler Manifests 5 | . . . 1 . . . 1 . 1 . . . . . . . . 1 . . . . . . . . . . 1 . . . . . . Zone Layout 3 | . 1 . . . . . . . . . . . . . . . 2 . . . . . . . . . . . . . . . . . . EX-Prototype ID Bank 1 | . . . . . 1 . . . . . . . . . . . . . . . . . . . . . . . . . . . . . . Fabricator Hacks 2 | . . . . . . . . . . . 1 . . . . . . 1 . . . . . . . . . . . . . . . . . Network Status 1 | . . . . . . . . . . . . . . . . . . 1 . . . . . . . . . . . . . . . . . Build 1 | . . . . . . . . . . . 1 . . . . . . . . . . . . . . . . . . . . . . . . Repair Station Hacks 20 | . . . 2 . . . . . 1 . . . . . . . . 11 . . . . . . . . . 2 . . 4 . . . . Scan Component 13 | . . . 1 . . . . . 1 . . . . . . . . 7 . . . . . . . . . 2 . . 2 . . . . Repair 7 | . . . 1 . . . . . . . . . . . . . . 4 . . . . . . . . . . . . 2 . . . . Recycling Unit Hacks . | . . . . . . . . . . . . . . . . . . . . . . . . . . . . . . . . . . . . Scanalyzer 8 | . . . . . . . 2 . . . . . . . . . . . . . . . . . . . . . . 1 3 2 . . . Insert Component 7 | . . . . . . . 1 . . . . . . . . . . . . . . . . . . . . . . 1 3 2 . . . Analyze 1 | . . . . . . . 1 . . . . . . . . . . . . . . . . . . . . . . . . . . . . Garrison Access Hacks 6 | . . . . . . . 1 . 1 . 1 . . . . . . 1 . . . . 1 . . . . 1 . . . . . . . Unlock Access 3 | . . . . . . . 1 . 1 . 1 . . . . . . . . . . . . . . . . . . . . . . . . Seal Access 3 | . . . . . . . . . . . . . . . . . . 1 . . . . 1 . . . . 1 . . . . . . . Unauthorized Hacks 24 | . 4 . 2 . . . 2 . 2 . . . . 2 . . 2 5 . . . . 1 . . . . . 2 . . 1 . 1 . Terminals 18 | . 2 . 1 . . . 1 . 2 . . . . 2 . . 2 4 . . . . . . . . . . 2 . . 1 . 1 . Track 1 | . . . . . . . . . . . . . . . . . . 1 . . . . . . . . . . . . . . . . . Assimilate 3 | . 1 . . . . . . . . . . . . 1 . . . . . . . . . . . . . . . . . 1 . . . Botnet 6 | . . . . . . . . . 1 . . . . 1 . . 1 2 . . . . . . . . . . 1 . . . . . . Operators 8 | . 1 . 1 . . . 1 . 1 . . . . . . . 1 1 . . . . . . . . . . 1 . . . . 1 . Fabricators 1 | . . . . . . . . . . . . . . . . . . 1 . . . . . . . . . . . . . . . . . Haulers 1 | . . . . . . . . . . . . . . . . . . 1 . . . . . . . . . . . . . . . . . Repair Stations 1 | . . . . . . . . . . . . . . . . . . . . . . . 1 . . . . . . . . . . . . Mechanics 1 | . . . . . . . . . . . . . . . . . . . . . . . 1 . . . . . . . . . . . . Recycling Units 4 | . 2 . 1 . . . 1 . . . . . . . . . . . . . . . . . . . . . . . . . . . . Tunnel 4 | . 2 . 1 . . . 1 . . . . . . . . . . . . . . . . . . . . . . . . . . . . Scanalyzers . | . . . . . . . . . . . . . . . . . . . . . . . . . . . . . . . . . . . . Garrison Access . | . . . . . . . . . . . . . . . . . . . . . . . . . . . . . . . . . . . . Data Cores Recovered 1 | . . . . . . . . . . . . . . 1 . . . . . . . . . . . . . . . . . . . . . Used . | . . . . . . . . . . . . . . . . . . . . . . . . . . . . . . . . . . . . Hacking Detections 66 | . 4 . 5 . . 1 3 . 6 . 5 . 1 3 1 . 3 8 . . . . 5 . . . . 4 1 . 8 5 2 1 . Full Trace Events 2 | . 1 . . . . . . . . . . . . . . . 1 . . . . . . . . . . . . . . . . . . Feedback Events . | . . . . . . . . . . . . . . . . . . . . . . . . . . . . . . . . . . . . Feedback Blocked . | . . . . . . . . . . . . . . . . . . . . . . . . . . . . . . . . . . . . Robot Schematics Acquired . | . . . . . . . . . . . . . . . . . . . . . . . . . . . . . . . . . . . . Robots Built . | . . . . . . . . . . . . . . . . . . . . . . . . . . . . . . . . . . . . Authchips . | . . . . . . . . . . . . . . . . . . . . . . . . . . . . . . . . . . . . Time . | . . . . . . . . . . . . . . . . . . . . . . . . . . . . . . . . . . . . Total Robot Build Rating . | . . . . . . . . . . . . . . . . . . . . . . . . . . . . . . . . . . . . Part Schematics Acquired 11 | . 1 . 1 . . . 1 . . . . . . . . . . . . . . . . . . 4 . . . . 4 . . . . Parts Built 2 | . . . . . . . . . . . 2 . . . . . . . . . . . . . . . . . . . . . . . . Authchips . | . . . . . . . . . . . . . . . . . . . . . . . . . . . . . . . . . . . . Time 53 | . . . . . . . . . . . 53 . . . . . . . . . . . . . . . . . . . . . . . . Total Part Build Rating 12 | . . . . . . . . . . . 12 . . . . . . . . . . . . . . . . . . . . . . . . Parts Repaired 7 | . . . 1 . . . . . . . . . . . . . . 4 . . . . . . . . . . . . 2 . . . . Time 500 | . . . 26 . . . . . . . . . . . . . . 366 . . . . . . . . . . . . 108 . . . . Parts Recycled . | . . . . . . . . . . . . . . . . . . . . . . . . . . . . . . . . . . . . Recycled Matter . | . . . . . . . . . . . . . . . . . . . . . . . . . . . . . . . . . . . . Retrieved Matter . | . . . . . . . . . . . . . . . . . . . . . . . . . . . . . . . . . . . . Retrieved Components . | . . . . . . . . . . . . . . . . . . . . . . . . . . . . . . . . . . . . Parts Scanalyzed 1 | . . . . . . . 1 . . . . . . . . . . . . . . . . . . . . . . . . . . . . Part Schematics Acquired 1 | . . . . . . . 1 . . . . . . . . . . . . . . . . . . . . . . . . . . . . Parts Damaged . | . . . . . . . . . . . . . . . . . . . . . . . . . . . . . . . . . . . . Bothacking | -11 -10 -10 -9 -9 -9 -8 -8 -8 -8 -8 -7 -7 -6 -6 -6 -6 -6 -5 -5 -5 -5 -4 -4 -4 -4 -4 -3 -3 -3 -2 -2 -2 -1 -1 -1 ------------ Run | Scr Mat Min Mat Min Exi Min Mat Gar Mat Gar Fac Gar Fac Ext Cet Arc Hub Fac Upp Upp War Pro Fac Upp Upp Zhi Pro Res Tes Res Qua Sec Acc Com Ac0 Used RIF Installer 3 | . . . . . . . . 1 . 1 . 1 . . . . . . . . . . . . . . . . . . . . . . . Command Fork 1 | . . . . . . . . . . 1 . . . . . . . . . . . . . . . . . . . . . . . . . Alert ID Control 1 | . . . . . . . . . . . . 1 . . . . . . . . . . . . . . . . . . . . . . . Robots Hacked 5 | . . . . . . . . 2 . . . . . . . . . . . . . . . . . . . . . . . 1 . 2 . Non-combat 1 | . . . . . . . . . . . . . . . . . . . . . . . . . . . . . . . . . . 1 . Combat 2 | . . . . . . . . 2 . . . . . . . . . . . . . . . . . . . . . . . . . . . Robot Hacks Applied 8 | . . . . . . . . 2 . . . . . . . . . . . . . . . . . . . . . . . . . 6 . purge_threat 4 | . . . . . . . . . . . . . . . . . . . . . . . . . . . . . . . . . . 4 . locate_traps 1 | . . . . . . . . . . . . . . . . . . . . . . . . . . . . . . . . . . 1 . reprogram_traps 1 | . . . . . . . . . . . . . . . . . . . . . . . . . . . . . . . . . . 1 . streamctrl_high 1 | . . . . . . . . 1 . . . . . . . . . . . . . . . . . . . . . . . . . . . formatsys_high 1 | . . . . . . . . 1 . . . . . . . . . . . . . . . . . . . . . . . . . . . Manual 2 | . . . . . . . . . . . . . . . . . . . . . . . . . . . . . . . . 1 . 1 . Relay Couplers Released 25 | . . . . . . . . 13 . 5 . . . . . . . . . . . . . . . . . 7 . . . . . . . Machine Destruction 18 | . . . . . . . . 13 . 5 . . . . . . . . . . . . . . . . . . . . . . . . . Programmers 7 | . . . . . . . . . . . . . . . . . . . . . . . . . . . . 7 . . . . . . . Attached 6 | . . . . . . . . 2 . 1 . . . 1 . . . . . . . . . . . . . . . . . . . 2 . Fabnet Peak Effective % . | . . . . . . . . . . . . . . . . . . . . . . . . . . . . . . . . . . . . Robots Rewired 6 | . . . . . . . . . . . . . . 6 . . . . . . . . . . . . . . . . . . . . . Allies Hacked 2 | . . . . . . . . . . . . . . . . . . . . . . . . . . . . . . . . 2 . . . Hacks Repelled . | . . . . . . . . . . . . . . . . . . . . . . . . . . . . . . . . . . . . Allies | -11 -10 -10 -9 -9 -9 -8 -8 -8 -8 -8 -7 -7 -6 -6 -6 -6 -6 -5 -5 -5 -5 -4 -4 -4 -4 -4 -3 -3 -3 -2 -2 -2 -1 -1 -1 -------- Run | Scr Mat Min Mat Min Exi Min Mat Gar Mat Gar Fac Gar Fac Ext Cet Arc Hub Fac Upp Upp War Pro Fac Upp Upp Zhi Pro Res Tes Res Qua Sec Acc Com Ac0 Total Allies 27 | . . 5 . . . . . 2 . . . . . 13 5 . . . . . . . . . . . . . . . . 2 . . . Largest Group 8 | . . 4 2 . . . . 2 . . . . . 8 6 5 4 . . . . . . . . . . . . . . 1 . . . Highest-Rated Group 610 | . . 84 37 . . . . 20 . . . . . 254 610 514 384 . . . . . . . . . . . . . . 219 . . . Highest-Rated Ally 219 | . . 31 21 . . . . 10 . . . . . 159 159 130 96 . . . . . . . . . . . . . . 219 . . . Total Orders 122 | . . . . . . . . . . . 3 . 2 9 1 2 8 12 2 6 2 3 6 4 4 . 1 . 6 3 1 36 11 . . STAY 26 | . . . . . . . . . . . 1 . . 3 1 1 1 . . 1 1 1 . . 2 . . . 1 1 . 12 . . . ROAM 1 | . . . . . . . . . . . 1 . . . . . . . . . . . . . . . . . . . . . . . . FOLLOW 18 | . . . . . . . . . . . . . . 3 . 1 1 1 . . 1 1 . . 1 . . . . . . 9 . . . RETURN 77 | . . . . . . . . . . . 1 . 2 3 . . 6 11 2 5 . 1 6 4 1 . 1 . 5 2 1 15 11 . . Ally Attacks 212 | . . 10 2 . . . . 6 . . . . . 88 39 14 37 . . . . . . . . . . . . . . 16 . . . Total Damage 6799 | . . 135 13 . . . . 131 . . . . . 2050 1151 685 1350 . . . . . . . . . . . . . . 1284 . . . Kills 38 | . . 4 . . . . . 1 . . . . . 11 8 3 7 . . . . . . . . . . . . . . 4 . . . Allies Corrupted 5 | . . . . . . . . . . . . . . . . . 4 . . . . . . . . . . . . . . 1 . . . Allies Melted . | . . . . . . . . . . . . . . . . . . . . . . . . . . . . . . . . . . . . Intel | -11 -10 -10 -9 -9 -9 -8 -8 -8 -8 -8 -7 -7 -6 -6 -6 -6 -6 -5 -5 -5 -5 -4 -4 -4 -4 -4 -3 -3 -3 -2 -2 -2 -1 -1 -1 ------- Run | Scr Mat Min Mat Min Exi Min Mat Gar Mat Gar Fac Gar Fac Ext Cet Arc Hub Fac Upp Upp War Pro Fac Upp Upp Zhi Pro Res Tes Res Qua Sec Acc Com Ac0 Robot Analysis Total 4 | . . . . . . . . . . . . . . . . . . . . . . . . . . 4 . . . . . . . . . Derelict Logs Recovered 12 | . . 1 . 2 . . . . . . . . . . . . . . 2 2 . 1 . 2 2 . . . . . . . . . . Drone Launches 98 | . . . . . . . . . . . 1 . 3 2 . 1 8 15 3 9 . 1 7 5 1 . 5 2 3 5 . 15 12 . . Drone Recoveries 86 | . . . . . . . . . . . 1 . 2 3 . . 8 13 2 8 . 1 6 5 1 . 4 . 4 3 1 14 10 . . Exploration | -11 -10 -10 -9 -9 -9 -8 -8 -8 -8 -8 -7 -7 -6 -6 -6 -6 -6 -5 -5 -5 -5 -4 -4 -4 -4 -4 -3 -3 -3 -2 -2 -2 -1 -1 -1 ------------- Run | Scr Mat Min Mat Min Exi Min Mat Gar Mat Gar Fac Gar Fac Ext Cet Arc Hub Fac Upp Upp War Pro Fac Upp Upp Zhi Pro Res Tes Res Qua Sec Acc Com Ac0 Turns Passed 54034 | 100 333 755 1983 214 447 310 875 1001 1276 650 1268 523 602 1702 376 1139 575 2641 1847 1484 284 997 1572 1757 1094 321 1286 1507 968 407 5451 2358 727 14537 667 Spaces Moved 26740 | 31 226 523 795 143 305 178 327 467 528 227 546 295 295 819 181 238 236 893 679 551 116 354 739 880 583 187 738 814 467 178 2788 1057 305 8765 286 Core 51 | . . . . . . . . . . . . . . . . 25 1 . . . . . . . . . . . . . . . . 15 10 Treads 19330 | . . . 171 . . . 21 3 . . . . . . . 41 . 674 679 551 116 354 739 880 583 187 738 814 467 178 2788 1041 296 8009 . Legs 1020 | 7 . . . . . . . . . . . . . . . . . . . . . . . . . . . . . . . . . 737 276 Wheels 6310 | 24 226 523 624 143 305 178 306 464 528 227 546 295 295 819 181 172 235 219 . . . . . . . . . . . . . . . . . Hover . | . . . . . . . . . . . . . . . . . . . . . . . . . . . . . . . . . . . . Flight . | . . . . . . . . . . . . . . . . . . . . . . . . . . . . . . . . . . . . Fastest Speed 50 | 95 95 110 125 145 145 145 160 160 190 190 150 150 165 150 165 165 165 190 246 246 246 246 160 160 160 160 160 160 166 167 167 150 143 105 50 Average Speed 165 | 100 111 122 148 145 145 145 165 180 190 213 150 150 165 164 165 396 183 240 246 246 246 246 160 160 160 160 160 162 166 168 169 160 147 144 107 Slowest Speed 2400 | 120 125 125 240 145 145 145 240 330 190 230 150 150 165 240 165 2150 2400 285 246 246 246 246 165 160 160 160 160 240 166 170 170 170 150 650 110 Overloaded Moves . | . . . . . . . . . . . . . . . . . . . . . . . . . . . . . . . . . . . . Propulsion Burnouts . | . . . . . . . . . . . . . . . . . . . . . . . . . . . . . . . . . . . . Robots Hopped . | . . . . . . . . . . . . . . . . . . . . . . . . . . . . . . . . . . . . Cave-ins Triggered . | . . . . . . . . . . . . . . . . . . . . . . . . . . . . . . . . . . . . Teleports 2 | . . . . . . . . . . . . . . . . . . . . . . . . . . . . . . . . . . 1 1 Spacefolds 12 | . . . . . . . . . . . . . . . . . . . . . . . . . . . . . . . . 7 3 2 . Exploration Rate (%) 53 | 2 40 97 73 54 69 46 37 69 44 47 19 62 7 86 68 84 44 17 78 73 19 61 28 90 80 61 89 34 51 7 96 56 12 96 18 Regions Visited 35 Branch Regions 21 Pre-discovered Areas 12 | . 2 . 1 1 1 . 1 . . . . . . . . . . . . . . 1 . 1 1 3 . . . . . . . . . Known Exits Taken 15 | . . . . . . 1 1 . 1 . 1 . . . . . . 1 1 1 . 1 1 . . . 1 1 1 1 . 1 1 . . Unknown Exits Taken 17 | 1 1 1 1 1 1 . . . . . . . 1 1 1 1 1 . . . 1 . . 1 1 1 . . . . 1 . . 1 . Scrap Searched 18 | . . 1 . 1 . 1 . . . . . . . . . . . . 3 1 . 2 . 4 3 . 2 . . . . . . . . Spaces Dug 448 | . . . 2 . . 13 17 27 6 . 12 . 10 5 . . 9 23 24 30 . 10 35 55 19 . . 17 10 2 35 26 20 41 . Terrain Destroyed 1230 | . 26 47 7 . 7 57 25 85 10 6 12 23 10 5 . 4 10 56 62 59 . 31 87 164 21 . 31 19 14 8 41 62 31 127 83 Melee 27 | . . . . . . . . . . . 12 . 10 5 . . . . . . . . . . . . . . . . . . . . . Projectile 628 | . . . 7 . . . 20 . 10 . . . . . . 4 10 56 41 17 . 11 47 49 21 . 1 19 14 8 41 62 31 76 83 AOE 574 | . 26 47 . . 7 57 5 85 . 6 . 23 . . . . . . 20 42 . 20 40 115 . . 30 . . . . . . 51 . Terrain Rammed . | . . . . . . . . . . . . . . . . . . . . . . . . . . . . . . . . . . . . Walls Destroyed . | . . . . . . . . . . . . . . . . . . . . . . . . . . . . . . . . . . . . Machines Disabled . | . . . . . . . . . . . . . . . . . . . . . . . . . . . . . . . . . . . . Actions | -11 -10 -10 -9 -9 -9 -8 -8 -8 -8 -8 -7 -7 -6 -6 -6 -6 -6 -5 -5 -5 -5 -4 -4 -4 -4 -4 -3 -3 -3 -2 -2 -2 -1 -1 -1 --------- Run | Scr Mat Min Mat Min Exi Min Mat Gar Mat Gar Fac Gar Fac Ext Cet Arc Hub Fac Upp Upp War Pro Fac Upp Upp Zhi Pro Res Tes Res Qua Sec Acc Com Ac0 Total 33938 | 69 267 622 1319 150 308 206 515 585 678 334 911 343 384 1055 238 377 348 1251 804 652 116 459 1018 1128 707 211 808 978 617 265 3423 1508 521 10299 464 Wait 3935 | 15 9 81 244 . . 10 68 16 55 36 284 19 52 79 1 67 66 198 80 72 1 82 170 142 88 . 48 65 91 59 382 229 133 975 18 Move 26690 | 31 225 522 794 142 304 177 327 466 527 226 545 294 294 818 180 237 235 892 678 550 115 353 739 879 582 186 737 813 466 177 2787 1047 298 8762 285 Hop . | . . . . . . . . . . . . . . . . . . . . . . . . . . . . . . . . . . . . Pick Up 316 | 1 3 4 29 2 1 1 9 8 11 8 9 1 8 15 12 4 1 20 . . . . 6 5 2 4 . 14 5 3 26 14 6 77 7 Fast Attach 204 | . 2 . 18 1 . . 2 2 2 2 4 . . 3 3 5 1 5 . . . 2 2 4 . 9 . 17 6 2 45 26 4 28 9 Attach 110 | 2 . 1 13 1 . . 5 1 3 3 3 3 2 8 2 4 4 7 . . . . 2 2 . . . 3 . 1 10 5 4 11 10 Detach 42 | . . . 5 . . . 1 1 . 1 . . . . . 2 3 3 . . . . 1 . . . . 1 1 . 7 2 1 12 1 Swap 463 | 1 3 . 24 1 . 1 16 11 11 4 9 3 8 20 4 6 13 38 9 6 . 3 19 18 5 . 8 6 12 7 28 49 31 55 34 Drop 419 | 2 1 . 37 3 1 1 16 5 10 8 13 . 5 10 17 5 . 17 1 . . 2 10 7 2 12 . 32 11 3 70 27 8 81 2 Fire 1494 | 17 24 13 146 . 2 15 67 28 57 26 23 23 2 48 19 45 25 68 36 24 . 17 67 70 28 . 15 26 21 9 63 107 35 230 98 Melee 51 | . . . . . . . . 2 . 12 12 . 13 8 . . . . . . . . . . . . . . . . 4 . . . . Ram 2 | . . 1 1 . . . . . . . . . . . . . . . . . . . . . . . . . . . . . . . . Kick . | . . . . . . . . . . . . . . . . . . . . . . . . . . . . . . . . . . . . Crush 47 | . . . 8 . . 1 4 . 2 . 9 . . . . 2 . 3 . . . . 2 1 . . . 1 4 4 1 2 1 2 . Escape Stasis 73 | . . . . . . . . 44 . 8 . . . 12 . . . . . . . . . . . . . . . . . . . 9 . Rewire 92 | . . . . . . . . 1 . . . . . 34 . . . . . . . . . . . . . . . . . . . 57 . Trap . | . . . . . . . . . . . . . . . . . . . . . . . . . . . . . . . . . . . . Miscellaneous . | . . . . . . . . . . . . . . . . . . . . . . . . . . . . . . . . . . . . Route ------- -11/Scrapyard -10/Materials -10/Mines (discovered 2 exits: *Mat x2) -9/Materials (discovered 4 exits: *Mat x3 / [*Min]) -9/Mines -9/Exiles (discovered 2 exits: *Min x2) -8/Mines -8/Materials (discovered 2 exits: Fac / Gar) -8/Garrison (discovered 2 exits: *Mat x2) -8/Materials -8/Garrison -7/Factory -7/Garrison (discovered 3 exits: *Fac x3) -6/Factory -6/Extension (discovered 2 exits: *Fac / *Cet) -6/Cetus (discovered 2 exits: *Fac / [*Arc]) -6/Archives (discovered 3 exits: *Fac / *Hub x2) -6/Hub_04(d) (discovered 2 exits: *Fac x2) -5/Factory (discovered 2 exits: *Upp x2) -5/Upper Caves -5/Upper Caves -5/Warlord -4/Proximity Caves -4/Factory (discovered 4 exits: *Res / *Upp x2 / Arm) -4/Upper Caves -4/Upper Caves (discovered 2 exits: *Res / *Zhi) -4/Zhirov -3/Proximity Caves -3/Research -3/Testing -2/Research -2/Quarantine (discovered 2 exits: *Acc / *Sec) -2/Section 7 -1/Access -1/Command (discovered 3 exits: [*Sur x2] / [*Ac0]) -1/Access_0 Near Former Tau Ceti IV History --------- Turn | Location | Event 26 | -11/Scrapyard | Discovered new exit (range 3) 101 | -11/Scrapyard | Entered Materials 248 | -10/Materials | Discovered new exit (range 13) 312 | -10/Materials | Build established: Mutant 434 | -10/Materials | Entered Mines 492 | -10/Mines | Discovered new exit (range 8) 509 | -10/Mines | Discovered new exit (range 15) 581 | -10/Mines | Assisted by bots powering up and referring to "LRC-V3" 700 | -10/Mines | Found the Drone Emporium 705 | -10/Mines | Found Prototype Device 735 | -10/Mines | Learned location of 1 exit from Materials 996 | -10/Mines | Excavation squad dispatched 996 | -10/Mines | A large section of the Mines collapsed 1189 | -10/Mines | Entered Materials 1189 | -9/Materials | Accompanied by 2 allies 1189 | -9/Materials | Evolved 2 slots: Propulsion x1, Utility x1 1190 | -9/Materials | Identified exit to Materials 1190 | -9/Materials | Identified Sensor Drone Bay 1486 | -9/Materials | Discovered exit to Materials (range 3) 1920 | -9/Materials | Build established: Scavenger-Mutant 2193 | -9/Materials | Discovered exit to Materials (range 3) 2561 | -9/Materials | Build established: Mutant 2846 | -9/Materials | Repaired Hcp. Storage Unit 2889 | -9/Materials | Core integrity fell below 50% 3150 | -9/Materials | Discovered new exit (range 16) 3172 | -9/Materials | Entered Mines 3184 | -9/Mines | Learned 2 Materials zone layouts 3197 | -9/Mines | Found a damaged Exp. Sensor Array with a note attached 3201 | -9/Mines | Found Prototype Device 3219 | -9/Mines | Received a Rocket Launcher from a helpful Derelict 3255 | -9/Mines | Learned location of Zion (-7) 3379 | -9/Mines | Deemed a non-threat by the Exiles lab entrance 3380 | -9/Mines | Discovered new exit (range 5) 3386 | -9/Mines | Entered Exiles 3410 | -9/Exiles | Discovered new exit (range 15) 3426 | -9/Exiles | Met 8R-AWN 3447 | -9/Exiles | Met EX-HEX 3520 | -9/Exiles | Met EX-DEC 3569 | -9/Exiles | Met EX-BIN 3594 | -9/Exiles | Aligned with FarCom system 3595 | -9/Exiles | Given EX-Vault access code 3634 | -9/Exiles | Opened EX-Vault 3666 | -9/Exiles | Warned to stay clear of 0b10 Research branches 3787 | -9/Exiles | Discovered new exit (range 12) 3810 | -9/Exiles | Attacked by the Exiles 3833 | -9/Exiles | Entered Mines 4113 | -8/Mines | Discovered exit to Materials (range 7) 4143 | -8/Mines | Entered Materials 4143 | -8/Materials | Evolved 2 slots: Utility x1, Weapon x1 4144 | -8/Materials | Identified exit to Factory 4735 | -8/Materials | Destroyed 7 combat bots 4838 | -8/Materials | Identified Exp. Sensor Array 5018 | -8/Materials | Identified exit to Garrison 5018 | -8/Materials | Entered Garrison 5098 | -8/Garrison | Triggered checkpoint 5234 | -8/Garrison | Discovered new exit (range 10) 5258 | -8/Garrison | Installed Relay Interface Framework 5298 | -8/Garrison | Triggered checkpoint 5351 | -8/Garrison | Garrison Relay disabled 5445 | -8/Garrison | Triggered checkpoint 5572 | -8/Garrison | Triggered checkpoint 5792 | -8/Garrison | Triggered checkpoint 5909 | -8/Garrison | Garrison Relay disabled 5992 | -8/Garrison | Discovered new exit (range 10) 6019 | -8/Garrison | Entered Materials 6345 | -8/Materials | Build established: Tank 7274 | -8/Materials | Identified exit to Garrison 7295 | -8/Materials | Entered Garrison 7305 | -8/Garrison | Expanded RIF knowledge: Command Fork 7396 | -8/Garrison | Triggered checkpoint 7436 | -8/Garrison | Garrison Relay disabled 7598 | -8/Garrison | Triggered checkpoint 7601 | -8/Garrison | Triggered checkpoint 7912 | -8/Garrison | Discovered exit to Factory (range 13) 7945 | -8/Garrison | Entered Factory 7945 | -7/Factory | Evolved 2 slots: Propulsion x1, Utility x1 8019 | -7/Factory | Fabricated Arm. Medium Treads? 8072 | -7/Factory | Build established: Bothacker-Mutant 8648 | -7/Factory | Build established: Bothacker-Gunner 9211 | -7/Factory | Identified exit to Garrison 9213 | -7/Factory | Entered Garrison 9366 | -7/Garrison | Triggered checkpoint 9394 | -7/Garrison | Destroyed 8 combat bots 9426 | -7/Garrison | Discovered new exit (range 9) 9546 | -7/Garrison | Discovered new exit (range 10) 9604 | -7/Garrison | Build established: Bothacker-Mutant 9614 | -7/Garrison | Triggered checkpoint 9691 | -7/Garrison | Discovered new exit (range 12) 9721 | -7/Garrison | Expanded RIF knowledge: Alert ID Control 9736 | -7/Garrison | Entered Factory 9736 | -6/Factory | Evolved 2 slots: Utility x2 10331 | -6/Factory | Discovered new exit (range 5) 10338 | -6/Factory | Entered Extension 10338 | -6/Extension | Accompanied by 1 ally 10549 | -6/Extension | Rescued a captive Derelict 10687 | -6/Extension | Rescued a captive Derelict 10726 | -6/Extension | Rescued a captive Derelict 10756 | -6/Extension | Rescued a captive Derelict 11110 | -6/Extension | Build established: Bothacker-Gunner 11154 | -6/Extension | Spotted B-75 Beast 11168 | -6/Extension | Destroyed B-75 Beast 11195 | -6/Extension | Spotted B-75 Beast 11225 | -6/Extension | Destroyed B-75 Beast 11324 | -6/Extension | Rescued a captive Derelict 11680 | -6/Extension | Rescued A7 12029 | -6/Extension | Discovered new exit (range 10) 12030 | -6/Extension | Discovered new exit (range 6) 12040 | -6/Extension | Entered Cetus 12040 | -6/Cetus | Accompanied by 4 allies (A7) 12045 | -6/Cetus | Acquired a Cetus Manufacturing Module code from A7 12064 | -6/Cetus | Spotted Cetus Guard 12064 | -6/Cetus | Spotted Cetus Guard 12065 | -6/Cetus | Spotted Cetus Guard 12074 | -6/Cetus | Allies destroyed Cetus Guard 12074 | -6/Cetus | Spotted Cetus Guard 12079 | -6/Cetus | Destroyed Cetus Guard 12084 | -6/Cetus | Allies destroyed Cetus Guard 12091 | -6/Cetus | Destroyed Cetus Guard 12185 | -6/Cetus | System corruption reached 10% 12201 | -6/Cetus | Escorted A7 to Cetus Mainframe 12217 | -6/Cetus | Started Cetus Manufacturing Module 12236 | -6/Cetus | Discovered new exit (range 16) 12242 | -6/Cetus | Manufactured an Enhanced Grunt 12267 | -6/Cetus | Manufactured an Enhanced Grunt 12285 | -6/Cetus | Spotted Cetus Guard 12285 | -6/Cetus | Spotted Cetus Guard 12288 | -6/Cetus | Spotted Cetus Guard 12292 | -6/Cetus | Manufactured an Enhanced Grunt 12295 | -6/Cetus | Allies destroyed Cetus Guard 12299 | -6/Cetus | Destroyed Cetus Guard 12302 | -6/Cetus | Allies destroyed Cetus Guard 12303 | -6/Cetus | Spotted Cetus Guard 12308 | -6/Cetus | Allies destroyed Cetus Guard 12313 | -6/Cetus | Discovered new exit (range 16) 12317 | -6/Cetus | Manufactured an Enhanced Grunt 12323 | -6/Cetus | Met Revision 17 12342 | -6/Cetus | Manufactured an Enhanced Grunt 12416 | -6/Cetus | Entered Archives 12416 | -6/Archives | Accompanied by 5 allies (A7) 12421 | -6/Archives | Received a hacking code to weaken MAIN.C 12523 | -6/Archives | Discovered new exit (range 14) 12766 | -6/Archives | Build established: Scavenger-Mutant 12822 | -6/Archives | Discovered new exit (range 15) 12965 | -6/Archives | Discovered new exit (range 16) 13555 | -6/Archives | Entered Hub_04(d) 13555 | -6/Hub_04(d) | Accompanied by 5 allies 13689 | -6/Hub_04(d) | Discovered new exit (range 7) 14089 | -6/Hub_04(d) | Network Hub disabled 14096 | -6/Hub_04(d) | Network Hub disabled 14098 | -6/Hub_04(d) | Discovered new exit (range 15) 14106 | -6/Hub_04(d) | Spotted Lightning 14108 | -6/Hub_04(d) | Spotted Lightning 14111 | -6/Hub_04(d) | Spotted Lightning 14130 | -6/Hub_04(d) | Entered Factory 14130 | -5/Factory | Evolved 2 slots: Power x1, Utility x1 14281 | -5/Factory | Repaired Centrium Medium Armor Plating? 14474 | -5/Factory | Repaired Broken Exp. Sensor Array 14627 | -5/Factory | Identified exit to Upper Caves 14750 | -5/Factory | Build established: Scavenger-Tank 15145 | -5/Factory | Build established: Scavenger-Mutant 15173 | -5/Factory | Repaired Centrium Medium Armor Plating 16107 | -5/Factory | Repaired Broken Centrium Heavy Treads? 16614 | -5/Factory | Build established: Scavenger-Tank 16771 | -5/Factory | Entered Upper Caves 16989 | -5/Upper Caves | Build established: Scavenger-Mutant 17658 | -5/Upper Caves | Encountered a Warlord checkpoint 17819 | -5/Upper Caves | Learned 4 Factory zone layouts 17886 | -5/Upper Caves | Learned 12 Factory zone layouts 17953 | -5/Upper Caves | Discovered new exit (range 15) 17955 | -5/Upper Caves | Learned location of 1 exit from Research 17955 | -5/Upper Caves | Learned Research trap positions 18261 | -5/Upper Caves | Identified exit to Upper Caves 18618 | -5/Upper Caves | Entered another Upper Caves area 18708 | -5/Upper Caves | Spotted B-75 Beast 18876 | -5/Upper Caves | Encountered a Warlord checkpoint 19241 | -5/Upper Caves | Learned Factory terminal intel 19492 | -5/Upper Caves | Learned Factory security intel 20021 | -5/Upper Caves | Discovered new exit (range 9) 20048 | -5/Upper Caves | Identified exit to Warlord 20102 | -5/Upper Caves | Entered Warlord 20102 | -5/Warlord | Accompanied by 1 ally 20297 | -5/Warlord | System corruption cleaned by Quarantine Array 20366 | -5/Warlord | Discovered new exit (range 9) 20386 | -5/Warlord | Entered Proximity Caves 20386 | -4/Proximity Caves | Accompanied by 1 ally 21136 | -4/Proximity Caves | Discovered new exit (range 7) 21154 | -4/Proximity Caves | Identified exit to Factory 21288 | -4/Proximity Caves | Received a Behemoth hack from an annoying Tinkerer 21383 | -4/Proximity Caves | Entered Factory 21383 | -4/Factory | Accompanied by 1 ally 21383 | -4/Factory | Evolved 2 slots: Propulsion x2 21384 | -4/Factory | Identified exit to Armory 21386 | -4/Factory | Loaded intel: 26 terminal locations 21900 | -4/Factory | Identified exit to Upper Caves 22643 | -4/Factory | Discovered new exit (range 21) 22955 | -4/Factory | Entered Upper Caves 23511 | -4/Upper Caves | Attracted the attention of an 0b10 checkpoint 23928 | -4/Upper Caves | Learned 4 Research zone layouts 24106 | -4/Upper Caves | Spotted B-86 Titan 24303 | -4/Upper Caves | Destroyed B-86 Titan 24520 | -4/Upper Caves | Discovered new exit (range 20) 24712 | -4/Upper Caves | Entered another Upper Caves area 24764 | -4/Upper Caves | Encountered a Warlord checkpoint 24804 | -4/Upper Caves | Discovered new exit (range 18) 25010 | -4/Upper Caves | Build established: Scavenger-Tank 25276 | -4/Upper Caves | Learned Research emergency access door positions 25333 | -4/Upper Caves | Build established: Scavenger-Mutant 25413 | -4/Upper Caves | Learned location of Testing (-3) 25774 | -4/Upper Caves | Discovered new exit (range 17) 25801 | -4/Upper Caves | Spotted B-86 Titan 25806 | -4/Upper Caves | Entered Zhirov 25808 | -4/Zhirov | Discovered new exit (range 3) 25838 | -4/Zhirov | Met Zhirov 25867 | -4/Zhirov | Learned location of Quarantine (-2) 25867 | -4/Zhirov | Learned location of Command (-1) 25882 | -4/Zhirov | Zhirov requested help retrieving the SGEMP Prototype 25909 | -4/Zhirov | Found Alien Artifact 25909 | -4/Zhirov | Identified Integrated Dissipator 25909 | -4/Zhirov | Installed Integrated Dissipator, increased core heat dissipation (+20) 26048 | -4/Zhirov | Found Alien Artifact 26127 | -4/Zhirov | Entered Proximity Caves 26129 | -3/Proximity Caves | Attracted the attention of an 0b10 checkpoint 26422 | -3/Proximity Caves | Build established: Scavenger-Tank 27047 | -3/Proximity Caves | Acquired the password to a Derelict Tinkerer's latest research 27329 | -3/Proximity Caves | Discovered new exit (range 5) 27342 | -3/Proximity Caves | Identified exit to Research 27413 | -3/Proximity Caves | Entered Research 27413 | -3/Research | Accompanied by 1 ally 27413 | -3/Research | Evolved 2 slots: Utility x2 27414 | -3/Research | Identified exit to Testing 27416 | -3/Research | Loaded intel: 69 trap records 27613 | -3/Research | Revision forces began assault on 0b10 27656 | -3/Research | Met up with Revision 17++ 28113 | -3/Research | Research terminal network offline 28147 | -3/Research | Build established: Scavenger-Mutant 28689 | -3/Research | Spotted Striker 28920 | -3/Research | Entered Testing 28920 | -3/Testing | Accompanied by 1 ally 28956 | -3/Testing | Found Prototype Hackware 29145 | -3/Testing | Discovered new exit (range 19) 29295 | -3/Testing | Found Prototype Device 29295 | -3/Testing | Identified Exp. Focal Shield 29608 | -3/Testing | Found Prototype Energy Cannon 29676 | -3/Testing | Identified exit to Research 29888 | -3/Testing | Entered Research 29888 | -2/Research | Evolved 2 slots: Propulsion x2 29912 | -2/Research | Identified Transdimensional Reconstructor 30047 | -2/Research | Discovered new exit (range 12) 30100 | -2/Research | Identified exit to Quarantine 30295 | -2/Research | Entered Quarantine 30295 | -2/Quarantine | Accompanied by 1 ally 30347 | -2/Quarantine | Found Transdimensional Reconstructor 30457 | -2/Quarantine | Cryocooling Duct disabled 30459 | -2/Quarantine | Cryocooling Duct disabled 30472 | -2/Quarantine | Ambient heat levels rising (+20) 30472 | -2/Quarantine | Non-combat units ordered to evacuate 30474 | -2/Quarantine | Ambient heat levels rising (+20) 30474 | -2/Quarantine | Combat units ordered to evacuate 30517 | -2/Quarantine | Found Alien Artifact 30517 | -2/Quarantine | Identified Subatomic Replicator 30574 | -2/Quarantine | Quarantine Guard activated 30632 | -2/Quarantine | Spotted Quarantine Guard 30632 | -2/Quarantine | Spotted Quarantine Guard 30632 | -2/Quarantine | Spotted Quarantine Guard 30633 | -2/Quarantine | Spotted Quarantine Guard 30646 | -2/Quarantine | Destroyed Quarantine Guard 30649 | -2/Quarantine | Destroyed Quarantine Guard 30673 | -2/Quarantine | Destroyed Quarantine Guard 30679 | -2/Quarantine | Destroyed Quarantine Guard 30986 | -2/Quarantine | Found Alien Artifact 30986 | -2/Quarantine | Identified Phase Redirector 31120 | -2/Quarantine | Found Prototype Processor 31168 | -2/Quarantine | Found Alien Artifact 31240 | -2/Quarantine | Spotted Quarantine Guard 31257 | -2/Quarantine | Identified Core Reset Matrix 31257 | -2/Quarantine | Identified Exp. Terrain Scan Processor 31648 | -2/Quarantine | Spotted Quarantine Guard 31707 | -2/Quarantine | Discovered new exit (range 15) 31743 | -2/Quarantine | Found Alien Artifact 31743 | -2/Quarantine | Identified Phase Armor 31787 | -2/Quarantine | Spotted Quarantine Guard 31806 | -2/Quarantine | Destroyed Quarantine Guard 31857 | -2/Quarantine | Spotted Quarantine Guard 32021 | -2/Quarantine | Found Alien Reactor 32021 | -2/Quarantine | Identified Matter Drive 32116 | -2/Quarantine | Spotted Quarantine Guard 32226 | -2/Quarantine | Build established: Mutant 32244 | -2/Quarantine | Identified Disintegrator 32251 | -2/Quarantine | Found Prototype Processor 32418 | -2/Quarantine | Identified Spectral Analyzer 32500 | -2/Quarantine | Spotted Quarantine Guard 32724 | -2/Quarantine | Destroyed Quarantine Guard 32757 | -2/Quarantine | Destroyed Quarantine Guard 32782 | -2/Quarantine | Spotted Quarantine Guard 33219 | -2/Quarantine | Spotted Fortress 33220 | -2/Quarantine | Build established: Scavenger-Mutant 33648 | -2/Quarantine | Found Alien Impact Weapon 33906 | -2/Quarantine | Identified Core Stripper 34102 | -2/Quarantine | Destroyed Fortress 34119 | -2/Quarantine | Found Prototype Device 34119 | -2/Quarantine | Identified Thermal Barrier 34123 | -2/Quarantine | Found Prototype Device 34123 | -2/Quarantine | Identified Exp. Force Field 34143 | -2/Quarantine | Found Prototype Device 34143 | -2/Quarantine | Identified Exp. EM Disruption Field 34151 | -2/Quarantine | Found Prototype Reactor 34151 | -2/Quarantine | Identified Vortex Chain Reactor 34169 | -2/Quarantine | Found Prototype Protection 34169 | -2/Quarantine | Identified Centrium Heavy Armor Plating 34210 | -2/Quarantine | Build established: Mutant 34831 | -2/Quarantine | Repaired Exp. EM Disruption Field 35126 | -2/Quarantine | Repaired Centrium Heavy Armor Plating 35716 | -2/Quarantine | Discovered new exit (range 16) 35735 | -2/Quarantine | Spotted Quarantine Guard 35746 | -2/Quarantine | Entered Section 7 35909 | -2/Section 7 | Build established: Skirmisher 36041 | -2/Section 7 | Spotted S7 Guard 36049 | -2/Section 7 | Found Alien Artifact 36095 | -2/Section 7 | Identified Integrated Thermoelectric Network 36095 | -2/Section 7 | Installed Integrated Thermoelectric Network, gained heat-energy exchange potential 36178 | -2/Section 7 | Found Alien Artifact 36232 | -2/Section 7 | Identified Integrity Redistributor 36375 | -2/Section 7 | Spotted S7 Guard 36386 | -2/Section 7 | Found Alien Artifact 36576 | -2/Section 7 | Discovered new exit (range 21) 36634 | -2/Section 7 | Found Alien Artifact 36634 | -2/Section 7 | Identified Spacefold Activator 36657 | -2/Section 7 | Identified exit to Access 36662 | -2/Section 7 | Build established: Mutant 36743 | -2/Section 7 | Spotted S7 Guard 36847 | -2/Section 7 | Found Alien Artifact 36860 | -2/Section 7 | Destroyed S7 Guard 36934 | -2/Section 7 | Spotted S7 Guard 36965 | -2/Section 7 | Identified Core Membrane 36965 | -2/Section 7 | Installed Core Membrane, gained immunity to corruption 36990 | -2/Section 7 | Found Alien Artifact 37026 | -2/Section 7 | Destroyed S7 Guard 37251 | -2/Section 7 | Spotted Alpha 7 37333 | -2/Section 7 | Spotted Alpha 7 37345 | -2/Section 7 | Core integrity fell below 50% 37357 | -2/Section 7 | Destroyed Alpha 7 37373 | -2/Section 7 | Destroyed Alpha 7 37410 | -2/Section 7 | Identified Core Regenerator 37410 | -2/Section 7 | Used Core Regenerator, restored core integrity (+362) 37411 | -2/Section 7 | Identified Core Physics Calibrator 37414 | -2/Section 7 | Found Prototype Processor 37423 | -2/Section 7 | Found Prototype Ballistic Gun 37424 | -2/Section 7 | Spotted B-99 Colossus 37614 | -2/Section 7 | Befriended a Behemoth using the annoying Tinkerer's hack 37676 | -2/Section 7 | Found Alien Artifact 37676 | -2/Section 7 | Identified Integrated Reactor 37676 | -2/Section 7 | Installed Integrated Reactor, increased core energy generation (+10) 37679 | -2/Section 7 | Found Integrated Reactor 37679 | -2/Section 7 | Installed Integrated Reactor, increased core energy generation (+10) 37683 | -2/Section 7 | Found Integrated Reactor 37683 | -2/Section 7 | Installed Integrated Reactor, increased core energy generation (+10) 37741 | -2/Section 7 | Found Alien Artifact 37741 | -2/Section 7 | Identified LRC Boosters 37741 | -2/Section 7 | Installed LRC Boosters, increased mass support (+10) 37746 | -2/Section 7 | First assault squad dispatched 37750 | -2/Section 7 | Found Alien Artifact 37750 | -2/Section 7 | Identified LRC Armor 37750 | -2/Section 7 | Installed LRC Armor, increased core integrity (+250) 37899 | -2/Section 7 | Identified Multirail 38016 | -2/Section 7 | Found Integrated Reactor 38016 | -2/Section 7 | Installed Integrated Reactor, increased core energy generation (+10) 38104 | -2/Section 7 | Entered Access 38104 | -1/Access | Evolved 2 slots: Power x1, Weapon x1 38244 | -1/Access | Identified System Mapper 38246 | -1/Access | Identified exit to Command 38831 | -1/Access | Entered Command 38887 | -1/Command | Found Antimissile System 39263 | -1/Command | Spotted M Guard 39265 | -1/Command | Spotted M Guard 39275 | -1/Command | Spotted Combat Programmer 39276 | -1/Command | Spotted Combat Programmer 39293 | -1/Command | Destroyed Combat Programmer 39318 | -1/Command | Destroyed Combat Programmer 39336 | -1/Command | Destroyed M Guard 39345 | -1/Command | Destroyed M Guard 39345 | -1/Command | All MAIN.C guards destroyed 39575 | -1/Command | Identified Exp. Targeting Computer 39704 | -1/Command | Met MAIN.C 39705 | -1/Command | Hacked MAIN.C using A7's code 39708 | -1/Command | 0b10 Conduit disabled 39761 | -1/Command | Destroyed MAIN.C Shell 39764 | -1/Command | MAIN.C activated Command garrisons 39810 | -1/Command | Destroyed MAIN.C 39842 | -1/Command | Discovered new exit (range 28) 39842 | -1/Command | Discovered new exit (range 112) 39842 | -1/Command | Extracted map data and part IDs from MAIN.C's data core 40138 | -1/Command | Build established: Generator-Mutant 42401 | -1/Command | Found Enh. Gamma Rifle 46499 | -1/Command | Found Exp. Target Analyzer 46501 | -1/Command | Found Exp. Target Analyzer 46504 | -1/Command | Found Exp. Target Analyzer 46506 | -1/Command | Found Exp. Cloaking Device 46509 | -1/Command | Found Exp. Force Field 46530 | -1/Command | Found Singularity Reactor 46534 | -1/Command | Found Zero-point Reactor 46537 | -1/Command | Found Vortex Chain Reactor 46943 | -1/Command | Found Multirail 47368 | -1/Command | Build established: Scavenger-Mutant 48642 | -1/Command | Found Exp. Core Analyzer 48759 | -1/Command | Found Exp. Core Analyzer 48830 | -1/Command | Found Singularity Reactor 49124 | -1/Command | Build established: Generator-Mutant 49340 | -1/Command | Found Singularity Reactor 49426 | -1/Command | Found Fusion Bomb Launcher 50177 | -1/Command | Build established: Generator-Gunner 50394 | -1/Command | Phase Generator disabled 53358 | -1/Command | Warped through subspace to slip node 53358 | -1/Command | Discovered new exit (range 5) 53368 | -1/Command | Entered Access_0 53369 | -1/Access_0 | Met Architect 53373 | -1/Access_0 | Destroyed A8 53391 | -1/Access_0 | Architect warped through subspace 53436 | -1/Access_0 | Architect warped through subspace 53499 | -1/Access_0 | Architect warped through subspace 53529 | -1/Access_0 | Architect warped through subspace 53564 | -1/Access_0 | Architect warped through subspace 53586 | -1/Access_0 | Architect warped through subspace 53606 | -1/Access_0 | Architect warped through subspace 53618 | -1/Access_0 | Architect warped through subspace 53623 | -1/Access_0 | Subspace Access Node disabled 53634 | -1/Access_0 | Architect warped through subspace 53651 | -1/Access_0 | Architect warped through subspace 53660 | -1/Access_0 | Found Exp. Phase Shifter 53684 | -1/Access_0 | Architect warped through subspace 53691 | -1/Access_0 | A6 warped into view 53697 | -1/Access_0 | Subspace Access Node disabled 53704 | -1/Access_0 | Destroyed A6 53708 | -1/Access_0 | Architect warped through subspace 53715 | -1/Access_0 | Found Med. Regenerative Plating 53728 | -1/Access_0 | Core integrity fell below 50% 53731 | -1/Access_0 | Architect warped through subspace 53765 | -1/Access_0 | Architect warped through subspace 53778 | -1/Access_0 | Architect warped through subspace 53794 | -1/Access_0 | Architect warped through subspace 53812 | -1/Access_0 | Architect warped through subspace 53842 | -1/Access_0 | Subspace Access Node disabled 53850 | -1/Access_0 | Architect warped through subspace 53878 | -1/Access_0 | Architect warped through subspace 53929 | -1/Access_0 | Architect warped through subspace 53937 | -1/Access_0 | Found Exp. Weapon Cycler 53960 | -1/Access_0 | Architect warped through subspace 53981 | -1/Access_0 | Architect warped through subspace 53983 | -1/Access_0 | Lost 4 parts (1n3w) 53984 | -1/Access_0 | Subspace Access Node disabled 54026 | -1/Access_0 | Destroyed Architect 54027 | -1/Access_0 | Architect triggered a singularity event 54029 | -1/Access_0 | Released all parts (21) 54029 | -1/Access_0 | Extracted unknown sensor trigger ID from Architect's data core 54030 | -1/Access_0 | Found Hpw. Transdimensional Reconstructor 54030 | -1/Access_0 | Warped through subspace to slip node 54030 | -1/Access_0 | Discovered new exit (range 8) 54035 | *** | Escaped singularity! Last Messages --------------- 54029_ Released Exp. Core Analyzer. 54029_ Released Enh. Nova Cannon. 54029_ Released Exp. Biometal Leg. 54029_ Released Enh. Nova Cannon. 54029_ Released Neutron Cannon. 54029_ Released Adv. Particle Charger. 54029_ Released Adv. Phase Shifter. 54029_ Released Neutron Cannon. 54029_ Acquired 97 matter. 54029_ Acquired data core, extracted unknown sensor trigger ID. 54030_ A0_COM: 8. 54030_ Acquired Hpw. Transdimensional Reconstructor. 54030_ Warped through subspace, drawn to slip node. 54030_ EXIT=FOUND 54031_ A0_COM: 7. 54032_ A0_COM: 6. 54033_ A0_COM: 5. 54034_ A0_COM: 4. 54035_ A0_COM: 3. [Achievement: Superachiever] Map ----- +----------------------------------------------------+ | | | | | | | | | | | | | | | | | | | | | | | | | | | | | | | | | ?????????????????????????????????????????????????? | | ?????????????????????????????????????????????????? | | ?????????????????????????????????????????????????? | | ?????????????????????????????????????????????????? | | ?????????????????????????????????????????????????? | | ?????????????????????????????????????????????????? | | ????????????????????????###??????????????????????? | | ???????????????????????## ##?????????????????????? | | ???????????????????????# #?????????????????????? | | ???????????????????????# @ #?????????????????????? | | ??????????????????????## #?????????????????????? | | ??????????????????????# #?????????????????????? | | ??????????????????????# ##?????????????????????? | | ??????????????????????## #?????????????????????? | | ??????????????????????# #?????????????????????? | | ??????????????????????# ##?????????????????????? | | ??????????????????????# < #?????????????????????? | | ??????????????????????# ##?????????????????????? | | ??????????????????????## #??????????????????????? | | ???????????????????????####??????????????????????? | | ?????????????????????????????????????????????????? | | ?????????????????????????????????????????????????? | | ?????????????????????????????????????????????????? | | ?????????????????????????????????????????????????? | | ?????????????????????????????????????????????????? | | ?????????????????????????????????????????????????? | | ?????????????????????????????????????????????????? | | ?????????????????????????????????????????????????? | | ?????????????????????????????????????????????????? | | ?????????????????????????????????????????????????? | | ?????????????????????????????????????????????????? | | ?????????????????????????????????????????????????? | | ?????????????????????????????????????????????????? | | ?????????????????????????????????????????????????? | +----------------------------------------------------+ Best States ------------- Heat Dissipation 138 Coolant Potential 120 Energy Generation 115 Energy Capacity 1100 Matter Stores 500 Matter Capacity 500 Sight Range 24 Terrain Scan Range 20 Terrain Scan Density 1010 Jamming Range 16 Power Amplification 30 EM Shielding 4 Corruption Block 20 Armor Coverage 1350 Resistance: TH 50 Resistance: EM 75 Weapon Shielding 66 Point Defense Rating 240 Weapon Cycling 30 Phase Shifting 20 Evasion (%) 70 Targeting Accuracy 12 Core Analysis 8 Armor Integrity Analysis 40 Recoil Reduction 8 Energy Filtering 50 Particle Charging 25 Salvage Targeting 3 Offensive Hacking 20 Defensive Hacking 12 Relay Coupler Types 1 Relay Coupler Value 28 Item Schematics ----------------- Huge Storage Unit | -10/Materials | Hacked Hcp. Storage Unit | -9/Materials | Hacked Exp. Sensor Array | -8/Materials | Scanalyzed Assault Drone Bay | -4/Zhirov | Free Exp. Heat Sink | -4/Zhirov | Free Exp. Optical Array | -4/Zhirov | Free Imp. Arc Thrower | -4/Zhirov | Free Exp. Shock Absorption System | -2/Quarantine | Archive Cld. Antigrav System | -2/Quarantine | Archive Cld. Antimatter Reactor | -2/Quarantine | Archive Exp. Q-thruster | -2/Quarantine | Archive Robot Schematics ------------------ None Fabricated ------------ Arm. Medium Treads | x2 | -7/Factory | Preloaded Alien Tech Used ----------------- Integrated Dissipator Subatomic Replicator Phase Redirector Phase Armor Matter Drive Core Stripper Integrated Thermoelectric Network Spacefold Activator Core Membrane Core Regenerator Core Physics Calibrator Integrated Reactor LRC Boosters LRC Armor Transdimensional Reconstructor High-powered Transdimensional Reconstructor Achievements -------------- Superachiever Woof! Challenges ------------ None Game ------ Seed StorageCooledDetonator Manual? 0 Play Time 11:52:03 Cumulative 473.1 hours Start 2022.03.27 @ 03:11:17 End 2022.03.30 @ 19:40:37 Sessions 3 Manual Loads 0 Difficulty Rogue Special Mode None Game No. 259 Rogue 259 Adventurer 0 Explorer 0 Win Type 6 Total 22 Types 1/5/4/1/1/1/7/1/1 Lore% 88 Gallery% 90 Achievement% 75 Wizard Run 0 Options --------- ASCII 1 Keyboard 1 Movement Vi Keybinds 0 Fullscreen 2 Font 16/Terminus Map View 75x55 Tactical HUD 1 Map Filters NONE Filters NONE Steam 1 RUN: 37f5afa8-b6af-4112-87e1-afd8b23ae13a